Workbook

Sheet 21-22 contents 10%
C1: FAYETTE COUNTY PUBLIC SCHOOLS SCHEDULE OF VALUES - BUILDINGS AND CONTENTS (EFFECTIVE July 1, 2021) 9/8/2021
C2: ELEMENTARY SCHOOLS | E2: =E212 -> $262.70 | F2: per sq foot | G2: 10.00%
A3: Loc. No. | B3: Bldg. No. | C3: Building and Address | D3: Serial # | E3: Square Footage | F3: Building | G3: Contents | H3: Total Value | I3: .90 Coinsurance | L3: 2004-05 Contents
A4: 001 | B4: 001 | C4: Arlington Elementary School 122 Arceme Avenue | E4: 65,232 | F4: =E4*E212 -> $17,136,446 | G4: =+F4*G2 -> $1,713,645 | H4: =SUM(F4+G4) -> $18,850,091 | I4: =H4*0.9 -> $16,965,082 | L4: $755,644
A5: 002 | B5: 001 | C5: Ashland Elementary School 195 North Ashland Avenue | E5: 51,330 | F5: =E5*E212 -> $13,484,391 | G5: =+F5*G2 -> $1,348,439 | H5: $14,832,830 | I5: $13,349,547 | L5: $509,652
A6: 003 | B6: 001 | C6: Athens-Chilesburg Elementary School 930 Jouett Creek Drive | E6: 71,196 | F6: =E6*E212 -> $18,703,189 | G6: =+F6*G2 -> $1,870,319 | H6: $20,573,508 | I6: $18,516,157 | L6: $1,080,000
A7: 004 | B7: 001 | C7: Booker T. Washington Elementary 707 Howard Street | E7: 53,816 | F7: =E7*E212 -> $14,137,463 | G7: =+F7*G2 -> $1,413,746 | H7: $15,551,210 | I7: $13,996,089 | L7: $629,250
A8: 005 | B8: 001 | C8: Breckinridge Elementary School 2101 St. Mathilda Drive | E8: 72,578 | F8: =E8*E212 -> $19,066,241 | G8: =+F8*G2 -> $1,906,624 | H8: $20,972,865 | I8: $18,875,578 | L8: $925,528
C9: Brenda Cowen Elementary School 4701 Athens-Boonesboro Rd. | E9: 80,948 | F9: =E9*E212 -> $21,265,040 | G9: =+F9*G2 -> $2,126,504 | H9: $23,391,544 | I9: $21,052,389
A10: 006 | B10: 001 | C10: Cardinal Valley Elementary School 218 Mandalay Road | E10: 74,964 | F10: =E10*E212 -> $19,693,043 | G10: =+F10*G2 -> $1,969,304 | H10: $21,662,347 | I10: $19,496,112 | L10: $1,005,713
A11: 007 | B11: 001 | C11: Cassidy Elementary School 1125 Tates Creek Road | E11: 73,934 | F11: =E11*E212 -> $19,422,462 | G11: =+F11*G2 -> $1,942,246 | H11: $21,364,708 | I11: $19,228,237 | L11: $901,065
A12: 008 | B12: 001 | C12: Clays Mill Elementary School 2319 Clays Mill Road | E12: 84,632 | F12: =E12*E212 -> $22,232,826 | G12: =+F12*G2 -> $2,223,283 | H12: $24,456,109 | I12: $22,010,498 | L12: $952,709
C13: Coventry Oak Elementary School 2550 Georgetown Road/Spurr Road | E13: 73,943 | F13: =E13*E212 -> $19,424,826 | G13: =+F13*G2 -> $1,942,483 | H13: $21,367,309 | I13: $19,230,578
A14: 009 | B14: 001 | C14: Deep Springs Elementary School 1919 Brynell Drive | E14: 69,396 | F14: =E14*E212 -> $18,230,329 | G14: =+F14*G2 -> $1,823,033 | H14: $20,053,362 | I14: $18,048,026 | L14: $869,806
A15: 010 | B15: 001 | C15: Dixie Elementary School 1940 Eastland Parkway | E15: 63,626 | F15: =E15*E212 -> $16,714,550 | G15: =+F15*G2 -> $1,671,455 | H15: $18,386,005 | I15: $16,547,405 | L15: $706,717
A16: 011 | B16: 001 | C16: Garden Springs Elementary School 2151 Garden Springs Drive | E16: 77,743 | F16: =E16*E212 -> $20,423,086 | G16: =+F16*G2 -> $2,042,309 | H16: $22,465,395 | I16: $20,218,855 | L16: $1,007,072
C17: Garrett Morgan Elementary 1150 Passage Mound Way/Polo Club Blvd | E17: 73,300 | F17: =E17*E212 -> $19,255,910 | G17: =+F17*G2 -> $1,925,591 | H17: $21,181,501 | I17: $19,063,351
A18: 012 | B18: 001 | C18: Glendover Elementary School 710 Glendover Road | E18: 73,068 | F18: =E18*E212 -> $19,194,964 | G18: =+F18*G2 -> $1,919,496 | H18: $21,114,460 | I18: $19,003,014 | L18: $1,166,084
A19: 013 | B19: 001 | C19: Harrison Elementary School 161 Bruce Street | E19: 56,300 | F19: =E19*E212 -> $14,790,010 | G19: =+F19*G2 -> $1,479,001 | H19: $16,269,011 | I19: $14,642,110 | L19: $636,046
A20: 014 | B20: 001 | C20: James Lane Allen Elementary School 1901 Appomattox Road | E20: 73,832 | F20: =E20*E212 -> $19,395,666 | G20: =+F20*G2 -> $1,939,567 | H20: $21,335,233 | I20: $19,201,710 | L20: $747,490
A21: 015 | B21: 001 | C21: Johnson Building 123 East Sixth Street | E21: 47,790 | F21: =E21*E212 -> $12,554,433 | G21: =+F21*G2 -> $1,255,443 | H21: $13,809,876 | I21: $12,428,889 | L21: $569,451
A22: 017 | B22: 001 | C22: Julius Marks Elementary School 3277 Pepperhill Road | E22: 60,411 | F22: =E22*E212 -> $15,869,970 | G22: =+F22*G2 -> $1,586,997 | H22: $17,456,967 | I22: $15,711,270 | L22: $1,099,489
A23: 018 | B23: 001 | C23: Lansdowne Elementary School 336 Redding Road | E23: 60,532 | F23: =E23*E212 -> $15,901,756 | G23: =+F23*G2 -> $1,590,176 | H23: $17,491,932 | I23: $15,742,739 | L23: $937,760
A24: 018 | B24: 002 | C24: Gymnasium | E24: 6,420 | F24: =E24*E212 -> $1,686,534 | G24: =+F24*G2 -> $168,653 | H24: $1,855,187 | I24: $1,669,669 | L24: $13,591
A25: 019 | B25: 001 | C25: Liberty Elementary School 2585 Liberty Road | E25: 71,900 | F25: =E25*E212 -> $18,888,130 | G25: =+F25*G2 -> $1,888,813 | H25: $20,776,943 | I25: $18,699,249 | L25: $631,968
A26: 019 | B26: 001 | C26: The Learning Center 475 Price Road | E26: 47,131 | F26: =E26*E212 -> $12,381,314 | G26: =+F26*G2 -> $1,238,131 | H26: $13,619,445 | I26: $12,257,501 | L26: $631,968
A27: 020 | B27: 001 | C27: Mary Todd Elementary School 551 Parkside Drive | E27: 70,800 | F27: =E27*E212 -> $18,599,160 | G27: =+F27*G2 -> $1,859,916 | H27: $20,459,076 | I27: $18,413,168 | L27: $933,682
A28: 021 | B28: 001 | C28: Maxwell Elementary School 301 Woodland Avenue | E28: 49,286 | F28: =E28*E212 -> $12,947,432 | G28: =+F28*G2 -> $1,294,743 | H28: $14,242,175 | I28: $12,817,958 | L28: $645,559
A29: 022 | B29: 001 | C29: Meadowthorpe Elementary School 1710 N. Forbes Road | E29: 69,460 | F29: =E29*E212 -> $18,247,142 | G29: =+F29*G2 -> $1,824,714 | H29: $20,071,856 | I29: $18,064,671 | L29: $429,467
A30: 023 | B30: 001 | C30: Millcreek Elementary School 1212 Reva Ridge Way | E30: 71,300 | F30: =E30*E212 -> $18,730,510 | G30: =+F30*G2 -> $1,873,051 | H30: $20,603,561 | I30: $18,543,205 | L30: $1,051,922
A31: 024 | B31: 001 | C31: Northern Elementary School 340 Rookwood Extended | E31: 67,310 | F31: =E31*E212 -> $17,682,337 | G31: =+F31*G2 -> $1,768,234 | H31: $19,450,571 | I31: $17,505,514 | L31: $835,829
A32: 025 | B32: 001 | C32: Picadome Elementary School 1642 Harrodsburg Road | E32: 57,302 | F32: =E32*E212 -> $15,053,235 | G32: =+F32*G2 -> $1,505,324 | H32: $16,558,559 | I32: $14,902,703 | L32: $811,366
C33: Preschool Center 460 Springhill | E33: 10,759 | F33: =E33*E212 -> $2,826,389 | G33: =+F33*G2 -> $282,639 | H33: $3,109,028 | I33: $2,798,125
C34: RISE / Junior Achievement Biztown/Newcomers 2420 Spurr Road | E34: 61,279 | F34: =E34*E212 -> $16,097,993 | G34: =+F34*G2 -> $1,609,799 | H34: $17,707,793 | I34: $15,937,013
C35: 2420 Spurr Road (Ed. Tech. Center) | E35: 1,600 | F35: =E35*E212 -> $420,320 | G35: =+F35*G2 -> $42,032 | H35: $462,352 | I35: $416,117
A36: 026 | B36: 001 | C36: Rosa Parks Elementary School 1251 Beaumont Centre Lane | E36: 68,985 | F36: =E36*E212 -> $18,122,360 | G36: =+F36*G2 -> $1,812,236 | H36: $19,934,595 | I36: $17,941,136 | L36: $1,080,000
A37: 027 | B37: 001 | C37: Russell Cave Elementary School 3375 Russell Cave Road | E37: 40,100 | F37: =E37*E212 -> $10,534,270 | G37: =+F37*G2 -> $1,053,427 | H37: $11,587,697 | I37: $10,428,927 | L37: $405,003
A38: 027 | B38: 002 | C38: Garage (metal prefabricated) | E38: 900 | F38: =E38*E212 -> $236,430 | G38: =+F38*G2 -> $23,643 | H38: $260,073 | I38: $234,066
A39: 028 | B39: 001 | C39: Sandersville Elementary School 3025 Sandersville Road | E39: 73,122 | F39: =E39*E212 -> $19,209,149 | G39: =+F39*G2 -> $1,920,915 | H39: $21,130,064 | I39: $19,017,058 | L39: $1,261,219
A40: 028 | B40: 001 | C40: Southern Elementary School 340 Wilson-Downing Road | E40: 70,659 | F40: =E40*E212 -> $18,562,119 | G40: =+F40*G2 -> $1,856,212 | H40: $20,418,331 | I40: $18,376,498 | L40: $1,261,219
A41: 029 | B41: 001 | C41: Squires Elementary School 3337 Squire Oak Road | E41: 79,656 | F41: =E41*E212 -> $20,925,631 | G41: =+F41*G2 -> $2,092,563 | H41: $23,018,194 | I41: $20,716,375 | L41: $1,073,667
A42: 030 | B42: 001 | C42: Stonewall Elementary School 3215 Cornwall Drive | E42: 78,294 | F42: =E42*E212 -> $20,567,834 | G42: =+F42*G2 -> $2,056,783 | H42: $22,624,617 | I42: $20,362,155 | L42: $1,046,485
A43: 031 | B43: 001 | C43: Tates Creek Elementary School 1113 Centre Parkway | E43: 79,087 | F43: =E43*E212 -> $20,776,155 | G43: =+F43*G2 -> $2,077,615 | H43: $22,853,770 | I43: $20,568,393 | L43: $1,054,640
A44: 033 | B44: 001 | C44: Veterans Park Elementary School 4351 Clearwater Way | E44: 73,467 | F44: =E44*E212 -> $19,299,781 | G44: =+F44*G2 -> $1,929,978 | H44: $21,229,759 | I44: $19,106,783 | J44: =E48*E212 -> $714,899,696 | L44: $1,080,000
C45: Wellington Elementary School 3280 Keithshire Way | E45: 73,990 | F45: =E45*E212 -> $19,437,173 | G45: =+F45*G2 -> $1,943,717 | H45: $21,380,890 | I45: $19,242,801
A46: 034 | B46: 001 | C46: William Wells Brown Elementary School 555 E. Fifth Street | E46: 69,297 | F46: =E46*E212 -> $18,204,322 | G46: =+F46*G2 -> $1,820,432 | H46: $20,024,754 | I46: $18,022,279 | J46: =#REF!+#REF! -> #REF! | L46: $716,231
A47: 034 | B47: 001 | C47: Yates Elementary School 695 E. New Circle Road | E47: 70,679 | F47: =E47*E212 -> $18,567,373 | G47: =+F47*G2 -> $1,856,737 | H47: $20,424,111 | I47: $18,381,700 | J47: =F48+G48 -> $786,389,665 | L47: $716,231
C48: SubTotals | E48: =SUM(E4:E47) -> 2,721,354 | F48: 714,899,696 | G48: 71,489,970 | H48: 786,389,665 | I48: 707,750,699
C50: MIDDLE SCHOOLS | E50: =+E213 -> $265.78 | F50: =+F2 -> per sq foot | G50: 10.00%
A51: Loc. No. | B51: Bldg. No. | C51: Building and Address | D51: Serial # | E51: Square Footage | F51: Building | G51: Contents | H51: Total Value | I51: .90 Coinsurance
A52: 035 | B52: 001 | C52: Beaumont Middle School 2080 Georgian Way | E52: 95,360 | F52: =E52*E213 -> $25,344,781 | G52: =+F52*G2 -> $2,534,478 | H52: =SUM(F52+G52) -> $27,879,259 | I52: =H52*0.9 -> $25,091,333 | L52: $1,057,358
A53: 037 | B53: 001 | C53: Bryan Station Middle School 1865 Wickland Drive | E53: 103,892 | F53: =E53*E213 -> $27,612,416 | G53: =+F53*G2 -> $2,761,242 | H53: $30,373,657 | I53: $27,336,292 | L53: $1,032,895
A54: 038 | B54: 001 | C54: Crawford Middle School 1813 Charleston Drive | E54: 100,349 | F54: =E54*E213 -> $26,670,757 | G54: =+F54*G2 -> $2,667,076 | H54: $29,337,833 | I54: $26,404,050 | L54: $1,099,489
C55: Edythe J. Hayes Middle School 260 Richardson Place | E55: 103,771 | F55: =E55*E213 -> $27,580,256 | G55: =+F55*G2 -> $2,758,026 | H55: $30,338,282 | I55: $27,304,454 | L55: $1,099,489
C56: Central Kentucky Japanese School Addition | E56: 12,972 | F56: =E56*E213 -> $3,447,698 | G56: =+F56*G2 -> $344,770 | H56: $3,792,468 | I56: ----- | L56: $150,000 | M56: =H56*0.9 -> $3,413,221
A57: 039 | B57: 001 | C57: Jessie M. Clark Middle School 3341 Clays Mill Road | E57: 125,321 | F57: =E57*E213 -> $33,307,815 | G57: =+F57*G2 -> $3,330,782 | H57: $36,638,597 | I57: =H57*0.9 -> $32,974,737 | L57: $1,155,088
A58: 040 | B58: 001 | C58: Leestown Middle School 2010 Leestown Road | E58: 109,197 | F58: =E58*E213 -> $29,022,379 | G58: =+F58*G2 -> $2,902,238 | H58: $31,924,617 | I58: $28,732,155 | L58: $1,049,204
A59: 041 | B59: 001 | C59: Lexington Traditional Middle School 350 North Limestone Street | E59: 88,547 | F59: =E59*E213 -> $23,534,022 | G59: =+F59*G2 -> $2,353,402 | H59: $25,887,424 | I59: $23,298,681 | L59: $1,005,713
A60: 041 | B60: 002 | C60: Gymnasium | E60: 12,953 | F60: =E60*E213 -> $3,442,648 | G60: =+F60*G2 -> $344,265 | H60: $3,786,913 | I60: $3,408,222 | L60: $13,591
A61: 042 | B61: 001 | C61: Morton Middle School 1225 Tates Creek Road | E61: 108,440 | F61: =E61*E213 -> $28,821,183 | G61: =+F61*G2 -> $2,882,118 | H61: $31,703,302 | I61: $28,532,971 | L61: $1,164,725
A62: 036 | B62: 001 | C62: SCAPA Bluegrass 400 Lafayette Parkway | E62: 62,326 | F62: =E62*E213 -> $16,565,004 | G62: =+F62*G2 -> $1,656,500 | H62: $18,221,505 | I62: $16,399,354 | L62: $400,000
A63: 043 | B63: 001 | C63: Southern Middle School 400 Wilson-Downing Road | E63: 92,685 | F63: =E63*E213 -> $24,633,819 | G63: =+F63*G2 -> $2,463,382 | H63: $27,097,201 | I63: $24,387,481 | J63: Double Check: | L63: $1,193,265
A64: 044 | B64: 001 | C64: Tates Creek Middle School 1105 Centre Parkway | E64: 109,500 | F64: =E64*E213 -> $29,102,910 | G64: =+F64*G2 -> $2,910,291 | H64: $32,013,201 | I64: $28,811,881 | J64: =E66*E213 -> $323,601,768 | L64: $1,422,948
A65: 045 | B65: 001 | C65: Winburn Middle School 1060 Winburn Drive | E65: 92,242 | F65: =E65*E213 -> $24,516,079 | G65: =+F65*G2 -> $2,451,608 | H65: $26,967,687 | I65: $24,270,918 | J65: =H66*0.9 -> $320,365,750 | L65: $1,155,211
C66: SubTotals | E66: =SUM(E52:E65) -> 1,217,555 | F66: $323,601,768 | G66: $32,360,177 | H66: $355,961,945 | I66: $316,952,529
C68: Note: According to a lease agreement between the Fayette County Board of Education (FCBE) and the Central Kentucky Japanese School (CKJS), "[FCBE] agrees to insure/self-insure the [CKJS Addition to the Edythe J. Hayes Middle School] for its full replacement value in accordance with the replacement cost estimates provided annually by the chief state school officer." As a result, CKJS is to be insured for the full replacement value stated in this Schedule of Values, and is to be exempted, by manual endorsement, from any co-insurance provision(s) applicable to other facilities.
C69: HIGH SCHOOLS | E69: =+E214 -> $274.69 | F69: =+F2 -> per sq foot | G69: 10.00%
A70: Loc. No. | B70: Bldg. No. | C70: Building and Address | D70: Serial # | E70: Square Footage | F70: Building | G70: Contents | H70: Total Value | I70: .90 Coinsurance
A71: 046 | B71: 001 | C71: Bryan Station High School 201 Eastin Road | E71: 278,574 | F71: =E71*E214 -> $76,521,492 | G71: =+F71*G2 -> $7,652,149 | H71: =SUM(F71+G71) -> $84,173,641 | I71: =H71*0.9 -> $75,756,277 | L71: $3,800,000
C72: Frederick Douglass High School 2000 Winchester Rd. 40509 | E72: 285,790 | F72: =E72*E214 -> $78,503,655 | G72: =+F72*G2 -> $7,850,366 | H72: $86,354,021 | I72: $77,718,619
A73: 047 | B73: 001 | C73: Henry Clay High School 2100 Fontaine Road | E73: 248,178 | F73: =E73*E214 -> $68,172,015 | G73: =+F73*G2 -> $6,817,201 | H73: $74,989,216 | I73: $67,490,295 | L73: $3,155,765
A74: 048 | B74: 001 | C74: Lafayette High School 401 Reed Lane | E74: 249,753 | F74: =E74*E214 -> $68,604,652 | G74: =+F74*G2 -> $6,860,465 | H74: $75,465,117 | I74: $67,918,605 | L74: $3,332,445
A75: 049 | B75: 001 | C75: Paul Laurence Dunbar High School 1600 Man-O-War Boulevard | E75: 271,514 | F75: =E75*E214 -> $74,582,181 | G75: =+F75*G2 -> $7,458,218 | H75: $82,040,399 | I75: $73,836,359 | L75: $3,706,560
A76: 050 | B76: 001 | C76: Tates Creek High School 1111 Centre Parkway | E76: 224,192 | F76: =E76*E214 -> $61,583,300 | G76: =+F76*G2 -> $6,158,330 | H76: $67,741,631 | I76: $60,967,467 | J76: Double Check: | L76: $2,300,355.20
A77: 052 | B77: 001 | C77: Martin Luther King Academy 2200 Liberty Road | E77: 40,746 | F77: =E77*E214 -> $11,192,519 | G77: =+F77*G2 -> $1,119,252 | H77: $12,311,771 | I77: $11,080,594 | J77: =H78*0.9 -> $434,768,215 | L77: $1,000,000
C78: SubTotals | E78: =SUM(E71:E77) -> 1,598,747 | F78: $439,159,813 | G78: $43,915,981 | H78: $483,075,795 | I78: $434,768,215
C80: VOCATIONAL SCHOOLS @ | E80: =+E215 -> $242.05 | F80: =+F2 -> per sq foot | G80: 10.00%
A81: Loc. No. | B81: Bldg. No. | C81: Building and Address | D81: Serial # | E81: Square Footage | F81: Building | G81: Contents | H81: Total Value | I81: .90 Coinsurance | J81: Doublecheck
A82: 051 | B82: 001 | C82: Eastside Center for Applied Technology 2208 Liberty Road | E82: 43,496 | F82: =E82*E215 -> $10,528,207 | G82: =+F82*G2 -> $1,052,821 | H82: =SUM(F82+G82) -> $11,581,027 | I82: =H82*0.9 -> $10,422,925 | J82: =SUM(F82:F89) -> $67,705,984 | L82: $652,355
A83: 051 | B83: 002 | C83: Garage (metal prefabricated) | E83: 900 | F83: =E83*E215 -> $217,845 | G83: =+F83*G2 -> $21,785 | H83: $239,630 | I83: $215,667 | J83: =SUM(F90:G90) -> $74,476,582
C84: Locust Trace Agriscience Farm - Academic Bldg 242 Locust Farm Road | E84: 43,081 | F84: =E84*E215 -> $10,427,756 | G84: =+F84*G2 -> $1,042,776 | H84: $11,470,532 | I84: $10,323,478
C85: Greenhouse 242 Locust Farm Road | E85: 3,746 | F85: =E85*E215 -> $906,719 | G85: =+F85*G2 -> $90,672 | H85: $997,391 | I85: $897,652
C86: Arena 252 Locust Farm Road | E86: 19,257 | F86: =E86*E215 -> $4,661,157 | G86: =+F86*G2 -> $466,116 | H86: $5,127,273 | I86: $4,614,545
C87: Barn 272 Locust Farm Road | E87: 2,736 | F87: =E87*E215 -> $662,249 | G87: =+F87*G2 -> $66,225 | H87: $728,474 | I87: $655,626
C88: Southside Center for Applied Technology 1800 Harrodsburg Road | E88: 41,503 | F88: =E88*E215 -> $10,045,801 | G88: =+F88*G2 -> $1,004,580 | H88: $11,050,381 | I88: $9,945,343
A89: 053 | B89: 001 | C89: STEAM/Success Academy 1555 Georgetown Road (under reno 19-20) | E89: 125,000 | F89: =E89*E215 -> $30,256,250 | G89: =+F89*G2 -> $3,025,625 | H89: $33,281,875 | I89: $29,953,688 | J89: =H90*0.9 -> $37,075,237 | L89: $733,899
C90: SubTotals | E90: =SUM(E82:E89) -> 279,719 | F90: $67,705,984 | G90: $6,770,598 | H90: =SUM(H82:H88) -> $41,194,707 | I90: =SUM(I82:I89) -> $67,028,924
C92: CENTRAL OFFICE | E92: =+E217 -> $222.39 | F92: =+F2 -> per sq foot | G92: 10.00%
A93: Loc. No. | B93: Bldg. No. | C93: Building and Address | D93: Serial # | E93: Square Footage | F93: Building | G93: Contents | H93: Total Value | I93: .90 Coinsurance
A94: 054 | B94: 001 | C94: IAKSS Building 701-707 East Main Street | E94: 112,283 | F94: =E94*E217 -> $24,970,616 | G94: =+F94*G2 -> $2,497,062 | H94: =SUM(F94+G94) -> $27,467,678 | I94: =H94*0.9 -> $24,720,910 | L94: $1,902,701
A95: 054 | B95: 002 | C95: IAKSS Building - Annex Rear 701-703 East Main Street | E95: 20,739 | F95: =E95*E217 -> $4,612,146 | G95: =+F95*G2 -> $461,215 | H95: $5,073,361 | I95: $4,566,025
A96: 058 | B96: 001 | C96: Joe G. White Building 400 Springhill Drive | E96: 22,172 | F96: =E96*E217 -> $4,930,831 | G96: =+F96*G2 -> $493,083 | H96: $5,423,914 | I96: $4,881,523 | J96: Double Check: | L96: $395,366
A97: 055 | B97: 001 | C97: John W. Ambrose Building 128 Walton Avenue | E97: 9,360 | F97: =E97*E217 -> $2,081,570 | G97: =+F97*G2 -> $208,157 | H97: $2,289,727 | I97: $2,060,755 | J97: =E102*E217 -> $122,167,723 | L97: $135,907
A98: 056 | B98: 001 | C98: Lexington Women's Club Clothing Center 700 Bullock Place | E98: 3,150 | F98: =E98*E217 -> $700,529 | G98: =+F98*G2 -> $70,053 | H98: $770,581 | I98: $693,523 | J98: =F102+G102 -> $134,384,495
A99: 061 | B99: 001 | C99: Maintenance Building 461 Springhill Drive | E99: 32,548 | F99: =E99*E217 -> $7,238,350 | G99: =+F99*G2 -> $723,835 | H99: $7,962,185 | I99: $7,165,966 | J99: =H102*0.9 -> $120,946,045 | L99: $864,864
C100: 101 Midland | E100: 162,476 | F100: =E100*E217 -> $36,133,038 | G100: =+F100*G2 -> $3,613,304 | H100: $39,746,341 | I100: $35,771,707
C101: 450 Park Place | E101: 186,612 | F101: =E101*E217 -> $41,500,643 | G101: =+F101*G2 -> $4,150,064 | H101: $45,650,707 | I101: $41,085,636
C102: SubTotals | E102: =SUM(E94:E101) -> 549,340 | F102: $122,167,723 | G102: $12,216,772 | H102: $134,384,495 | I102: $120,946,045
C104: BUS GARAGES | E104: =+E218 -> $203.13 | F104: =+F2 -> per sq foot | G104: 10.00%
A105: Loc. No. | B105: Bldg. No. | C105: Building and Address | D105: Serial # | E105: Square Footage | F105: Building | G105: Contents | H105: Total Value | I105: .90 Coinsurance
A106: 057 | B106: 001 | C106: Liberty Bus Garage 2264 Liberty Road (Main Bldg.) | E106: 13,572 | F106: =E106*E218 -> $2,756,880 | G106: =+F106*G2 -> $275,688 | H106: =SUM(F106+G106) -> $3,032,568 | I106: =H106*0.9 -> $2,729,312 | L106: $271,814
A107: 057 | B107: 002 | C107: Shelters | E107: 36,960 | F107: =E107*E218 -> $7,507,685 | G107: =+F107*G2 -> $750,768 | H107: $8,258,453 | I107: $7,432,608 | J107: Double Check: | L107: $216,000
A108: 057 | B108: 003 | C108: Bus Wash | E108: 2,015 | F108: =E108*E218 -> $409,307 | G108: =+F108*G2 -> $40,931 | H108: $450,238 | I108: $405,214 | J108: =E111*E218 -> $16,284,729 | L108: $75,600
A109: 057 | B109: 004 | C109: Oil Storage Tank (Contents Only) | F109: =E109*E218 -> 0 | G109: =+F109*G2 -> 0 | H109: 0 | I109: 0 | J109: =F111+G111 -> $17,913,202 | L109: $356,400
C110: Miles Point Bus Garage 780 Milepoint Way | E110: 27,622 | F110: =E110*E218 -> $5,610,857 | G110: =+F110*G2 -> $561,086 | H110: =+F110+G110 -> $6,171,943 | I110: $5,554,748
C111: SubTotals | E111: =SUM(E106:E110) -> 80,169 | F111: $16,284,729 | G111: $1,628,473 | H111: $17,913,202 | I111: $16,121,882
C113: STORAGE BUILDINGS | E113: =+E219 -> $147.21 | F113: =+F2 -> per sq foot | G113: 10.00% | J113: Double Check:
A114: Loc. No. | B114: Bldg. No. | C114: Building and Address | D114: Serial # | E114: Square Footage | F114: Building | G114: Contents | H114: Total Value | I114: .90 Coinsurance | J114: =E117*E219 -> $22,308,498
C115: Russell Cave Warehouse, 1126 Russell Cave Rd | E115: 99,968 | F115: =E115*E219 -> $14,716,289 | G115: =+F115*G2 -> $1,471,629 | H115: =SUM(F115+G115) -> $16,187,918 | I115: =H115*0.9 -> $14,569,126
A116: 060 | B116: 001 | C116: Louis Mack Building, 460 Springhill Drive | E116: 51,574 | F116: =E116*E219 -> $7,592,209 | G116: =+F116*G2 -> $759,221 | H116: $8,351,429 | I116: $7,516,286 | J116: =F117+G117 -> $24,539,348 | L116: $3,088,800
C117: SubTotals | E117: =SUM(E115:E116) -> 151,542 | F117: $22,308,498 | G117: $2,230,850 | H117: $24,539,348 | I117: $22,085,413
C119: ATHLETIC FACILITIES | G119: =+G2 -> 10.00%
A120: 046 | B120: 004 | C120: Bryan Station High School Football Facilities | E120: 522,720 | F120: $4,197,441 | G120: =+F120*G2 -> $419,744 | H120: =SUM(F120+G120) -> $4,617,185 | I120: =H120*0.9 -> $4,155,467 | L120: $2,527,874
A121: 046 | B121: 004 | C121: Baseball / Softball Facilities | E121: 6,368 | F121: =+E121*E220 -> $358,900 | G121: =+F121*G2 -> $35,890 | H121: $394,791 | I121: $355,311 | L121: $2,527,874
C122: Frederick Douglass High School Football Facilities | E122: 522,720 | F122: $4,197,441 | G122: =+F122*G2 -> $419,744 | H122: $4,617,185 | I122: $4,155,467
C123: Baseball / Softball Facilities | E123: 6,368 | F123: =+E123*E220 -> $358,900 | G123: =+F123*G2 -> $35,890 | H123: $394,791 | I123: $355,311
C124: P.L. Dunbar High School Football Facilities | E124: 522,720 | F124: $3,497,450 | G124: =+F124*G2 -> $349,745 | H124: $3,847,195 | I124: $3,462,476
C125: Baseball / Softball Facilities | E125: 5,120 | F125: =+E125*E220 -> $288,563 | G125: =+F125*G2 -> $28,856 | H125: $317,420 | I125: $285,678
A126: 047 | B126: 003 | C126: Henry Clay High School Football Stadium and Facilities | E126: 522,720 | F126: $3,497,450 | G126: =+F126*G2 -> $349,745 | H126: $3,847,195 | I126: $3,462,476 | L126: $3,155,765
A127: 047 | B127: 004 | C127: Baseball / Softball Facilities | E127: 5,120 | F127: =+E127*E220 -> $288,563 | G127: =+F127*G2 -> $28,856 | H127: $317,420 | I127: $285,678 | L127: $132,000
A128: 047 | B128: 005 | C128: Football Facility | E128: 4,000 | F128: =+E128*E220 -> $225,440 | G128: =+F128*G2 -> $22,544 | H128: $247,984 | I128: $223,186 | L128: $100,000
A129: 048 | B129: 002 | C129: Lafayette High School Football Stadium and Facilities | E129: 522,720 | F129: $4,197,441 | G129: =+F129*G2 -> $419,744 | H129: $4,617,185 | I129: $4,155,467 | L129: $3,332,445
A130: 048 | B130: 002 | C130: Baseball / Softball Facilities | E130: 6,800 | F130: =+E130*E220 -> $383,248 | G130: =+F130*G2 -> $38,325 | H130: $421,573 | I130: $379,416 | L130: $3,332,445
A131: 050 | B131: 002 | C131: Tates Creek High School Football Stadium and Facilities | E131: 435,600 | F131: $3,497,868 | G131: =+F131*G2 -> $349,787 | H131: $3,847,655 | I131: $3,462,889 | J131: =F133+G133 -> $27,797,557 | L131: $2,300,355.20
A132: 050 | B132: 003 | C132: Baseball / Softball Facilities | E132: 5,000 | F132: =+E132*E220 -> $281,800 | G132: =+F132*G2 -> $28,180 | H132: $309,980 | I132: $278,982 | J132: =H133*0.9 -> $25,017,801 | L132: $25,000
C133: SubTotals | E133: =SUM(E120:E132) -> 3,087,976 | F133: $25,270,506 | G133: $2,527,051 | H133: $27,797,557 | I133: $25,017,801
C135: PORTABLES (Rev. 8/21/21)
A136: Loc. No. | B136: Bldg. No. | D136: Serial # | E136: Square Footage | F136: Building | G136: Contents | H136: Total Value | I136: .90 Coinsurance | N136: classrooms
A137: 035 | B137: 002 | C137: Athens-Chilesburg Elementary 5,616 | L137: $8,986
C138: Double Relocatable Classroom | D138: CPX-74117 | E138: 1,632 | F138: $64,540 | G138: $9,166 | H138: =+F138+G138 -> $73,706 | I138: =+H138*0.9 -> $66,335 | N138: 2
C139: Double Relocatable Classroom | D139: CPX-75422 | E139: 1,632 | F139: $64,540 | G139: $9,166 | H139: $73,706 | I139: $66,335 | L139: $8,986 | N139: 2
A140: 035 | B140: 002 | C140: Double Relocatable Classroom | D140: CPX-73811 | E140: 1,632 | F140: $64,540 | G140: $9,166 | H140: $73,706 | I140: $66,335 | L140: $8,986 | N140: 2
C141: Restroom | D141: MDS-034788 | E141: 720 | F141: $42,000 | G141: $500 | H141: $42,500 | I141: $38,250 | N141: 0
C142: Beaumont Middle 10,880
A143: 035 | B143: 003 | C143: Double Relocatable Classroom (own) | D143: n/a | E143: 1,904 | F143: $20,000 | G143: $9,166 | H143: =+F143+G143 -> $29,166 | I143: =+H143*0.9 -> $26,249 | L143: $8,986 | N143: 2
C144: Double Relocatable Classroom (own) | D144: n/a | E144: 1,904 | F144: $20,000 | G144: $9,166 | H144: $29,166 | I144: $26,249 | L144: $8,986 | N144: 2
C145: Double Relocatable Classroom (own) | D145: n/a | E145: 1,904 | F145: $20,000 | G145: $9,166 | H145: $29,166 | I145: $26,249 | N145: 2
C146: Double Relocatable Classroom | D146: CPX-73814 | E146: 1,632 | F146: $64,540 | G146: $9,166 | H146: $73,706 | I146: $66,335 | N146: 2
C147: Double Relocatable Classroom | D147: CPX-70070 | E147: 1,632 | F147: $56,329 | G147: $9,166 | H147: $65,495 | I147: $58,945 | N147: 2
C148: Double Relocatable Classroom | D148: CPX-70081 | E148: 1,904 | F148: $56,329 | G148: $9,166 | H148: $65,495 | I148: $58,945 | N148: 2
C149: Cassidy Elementary 1,792
C150: Double Relocatable Classroom | D150: CPX-72598 | E150: 1,792 | F150: $56,329 | G150: $9,156 | H150: =+F150+G150 -> $65,485 | I150: =+H150*0.9 -> $58,937 | N150: 2
C151: EJ Hayes Middle School 7,972
C152: Double Relocatable Classroom | D152: CPX-70052 | E152: 1,904 | F152: $64,540 | G152: $9,166 | H152: =+F152+G152 -> $73,706 | I152: =+H152*0.9 -> $66,335 | N152: 2
C153: Double Relocatable Classroom | D153: CPX-75420 | E153: 1,632 | F153: $56,329 | G153: $9,166 | H153: $65,495 | I153: $58,946 | N153: 2
C154: Double Relocatable Classroom | D154: CPX-72628 | E154: 1,904 | F154: $64,540 | G154: $9,166 | H154: $73,706 | I154: $66,335 | N154: 2
C155: Double Relocatable Classroom | D155: CPX-73298 | E155: 1,632 | F155: $56,329 | G155: $9,166 | H155: $65,495 | I155: $58,946 | N155: 2
C156: Garrett Morgan Elementary School 3,920
C157: Double Relocate Classroom | D157: 2325807-08 | E157: 1,960 | F157: $90,000 | G157: $9,166 | H157: =+F157+G157 -> $99,166 | I157: =+H157*0.9 -> $89,249 | N157: 2
C158: Double Relocatable Clssroom | D158: 2325809-10 | E158: 1,960 | F158: $90,000 | G158: $9,166 | H158: $99,166 | I158: $89,249 | N158: 2
C159: Henry Clay High School 15,552
C160: Double Relocatable Clssroom | D160: CPX-115183 | E160: 1,632 | F160: $64,540 | G160: $9,166 | H160: =+F160+G160 -> $73,706 | I160: =+H160*0.9 -> $66,335 | N160: 2
C161: Double Relocatable Clssroom | D161: CPX-113238 | E161: 1,632 | F161: $64,540 | G161: $9,166 | H161: $73,706 | I161: $66,335 | N161: 2
C162: Relocatable Classrooms | D162: ARIES-80709 | E162: 12,288 | F162: $516,320 | G162: $64,162 | H162: $580,482 | I162: $522,434 | N162: 14
C163: Eastside Technical 1,632
C164: Double Relocatable Classroom | D164: CPX-73816 | E164: 1,632 | F164: $64,540 | G164: $9,166 | H164: =+F164+G164 -> $73,706 | I164: =+H164*0.9 -> $66,335 | N164: 2
C165: Jessie Clark Middle School 7,168
C166: Relocatable Classrooms | D166: Van-38613 | E166: 7,168 | F166: $287,795 | G166: $36,664 | H166: =+F166+G166 -> $324,459 | I166: =+H166*0.9 -> $292,013 | N166: 8
C167: Julius Marks Elementary 4,576
C168: Restroom | D168: MDS-019317 | E168: 768 | F168: $42,000 | G168: $500 | H168: =+F168+G168 -> $42,500 | I168: =+H168*0.9 -> $38,250 | N168: 0
C169: Double Relocatable Classroom | D169: CPX-110057 | E169: 1,904 | F169: $81,200 | G169: $9,166 | H169: $90,366 | I169: $81,329 | N169: 2
C170: Double Relocatable Classroom | D170: CPX-109186 | E170: 1,904 | F170: $81,600 | G170: $9,166 | H170: $90,766 | I170: $81,689 | N170: 2
C171: Lansdowne Elementary School 1,632
C172: Double Relocatable Classroom | D172: CPX-75418 | E172: 1,632 | F172: $64,540 | G172: $9,166 | H172: =+F172+G172 -> $73,706 | I172: =+H172*0.9 -> $66,335 | N172: 2
C173: Leestown Middle School 13,648
C174: Double Relocatable Classroom | D174: 2323271-72 | E174: 1,960 | F174: $90,000 | G174: $9,166 | H174: =+F174+G174 -> $99,166 | I174: =+H174*0.9 -> $89,249 | N174: 2
C175: Double Relocatable Classroom | D175: 2323269-70 | E175: 1,960 | F175: $90,000 | G175: $9,166 | H175: $99,166 | I175: $89,249 | N175: 2
C176: Relocatable Classrooms (future) | D176: Van-39226 | E176: 9,728 | F176: $446,612 | G176: $45,830 | H176: =F176+G176 -> $492,442 | I176: $443,198 | N176: 10
C177: Liberty Elementary 3,264
C178: Double Relocatable Classroom | D178: CPX-74119 | E178: 1,632 | F178: $64,540 | G178: $9,166 | H178: =+F178+G178 -> $73,706 | I178: =+H178*0.9 -> $66,335 | N178: 2
C179: Double Relocatable Classroom | D179: CPX-75277 | E179: 1,632 | F179: $64,540 | G179: $9,166 | H179: $73,706 | I179: $66,335 | N179: 2
C180: Morton Middle School 3,536
C181: Double Relocatable Classroom | D181: CPX-73065 | E181: 1,904 | F181: $81,200 | G181: $9,166 | H181: =+F181+G181 -> $90,366 | I181: =+H181*0.9 -> $81,329 | N181: 2
C182: Double Relocatable Classroom | D182: CPX-73813 | E182: 1,632 | F182: $64,540 | G182: $9,166 | H182: $73,706 | I182: $66,335 | N182: 2
C183: Northern Elementary 1,904
C184: Double Relocatable Classroom | D184: CPX-72593 | E184: 1,904 | F184: $56,329 | G184: $9,166 | H184: =+F184+G184 -> $65,495 | I184: =+H184*0.9 -> $58,946 | N184: 2
C185: Rosa Parks Elementary School 1,500
C186: Double Relocatable Classroom (own) | D186: n/a | E186: 1,500 | F186: $20,000 | G186: $9,166 | H186: =+F186+G186 -> $29,166 | I186: =+H186*0.9 -> $26,249 | N186: 2
C187: Southern Middle School 3,808
C188: Double Relocatable Classroom | D188: CPX-70108 | E188: 1,904 | F188: $64,540 | G188: $9,166 | H188: =+F188+G188 -> $73,706 | I188: =+H188*0.9 -> $66,335 | N188: 2
C189: Double Relocatable Classroom | D189: CPX-70108 | E189: 1,904 | F189: $64,540 | G189: $9,166 | H189: $73,706 | I189: $66,335 | N189: 2
C190: Veterans Park Elementary 4,176
C191: Double Relocatable Classroom | D191: CPX-114099 | E191: 1,776 | F191: $84,000 | G191: $9,166 | H191: =+F191+G191 -> $93,166 | I191: =+H191*0.9 -> $83,849 | N191: 2
C192: Double Relocatable Classroom | D192: CPX-111966 | E192: 1,632 | F192: $81,600 | G192: $9,166 | H192: $90,766 | I192: $81,689 | N192: 2
C193: Restroom | D193: MDS-078509 | E193: 768 | F193: $42,000 | G193: $500 | H193: $42,500 | I193: $38,250 | N193: 0
C194: Winburn Middle 5,376 | N194: 6
C195: Relocatable Classrooms | D195: Van-38612 | E195: 5,376 | F195: $215,846 | G195: $27,498 | H195: =+F195+G195 -> $243,344 | I195: =+H195*0.9 -> $219,010
C196: Liberty Road Bus Garage 3,640
C197: Double Relocatable Offices (own) | D197: n/a | E197: 1,500 | F197: $45,000 | G197: $15,000 | H197: =+F197+G197 -> $60,000 | I197: =+H197*0.9 -> $54,000
C198: Double Relocatable Offices (own) | D198: n/a | E198: 1,500 | F198: $45,000 | G198: $15,000 | H198: $60,000 | I198: $54,000
C199: Temp Covid 40 x 8 $15,108 | D199: Covid Office | E199: 320 | F199: $12,848 | G199: $500 | H199: =F199+G199 -> $13,348 | I199: $12,013
C200: Temp Covid 40 x 8 $15,108 | D200: Covid Office | E200: 320 | F200: $12,848 | G200: $500 | H200: $13,348 | I200: $12,013
C201: SubTotals ** | E201: =SUM(E138:E200) -> 100,692 | F201: =SUM(F138:F198) -> $3,838,247 | G201: $517,285 | H201: $4,355,532 | I201: $3,919,979
C203: UNIMPROVED LAND
A204: Loc. No. | B204: Bldg. No. | C204: Building and Address | E204: Square Footage | F204: Building | G204: Contents | H204: Total Value | I204: .90 Coinsurance
C205: Southern Elementary & Middle Property (Meadowbrook Golf Course) 400 Wilson Downing | J205: Double Check:
C206: 4701 Athens Boonesboro Rd (current I am 3rd soccer fields)
C207: 2345 Polo Club Blvd (future middle school) | G207: =+F207*G2 -> 0 | H207: =SUM(F207+G207) -> 0 | I207: =H207*0.9 -> 0
C208: SubTotals | E208: =SUM(E205:E207) -> 0 | F208: 0 | G208: 0 | H208: 0 | I208: 0
C209: GRAND TOTALS | E209: =SUM(E48+E66+E78+E90+E102+E111+E117+E133+E201+E208) -> 9,787,094 | F209: $1,735,236,964 | G209: $173,657,157 | H209: $1,875,612,246 | I209: $1,714,591,488 | L209: =SUM(L4:L198) -> $86,646,018
... 9 more rows

Sheet 21-22 contents 7.5%
C1: FAYETTE COUNTY PUBLIC SCHOOLS SCHEDULE OF VALUES - BUILDINGS AND CONTENTS (EFFECTIVE July 1, 2021) 9/8/2021
C2: ELEMENTARY SCHOOLS | E2: =E212 -> $262.70 | F2: per sq foot | G2: 7.50%
A3: Loc. No. | B3: Bldg. No. | C3: Building and Address | D3: Serial # | E3: Square Footage | F3: Building | G3: Contents | H3: Total Value | I3: .90 Coinsurance | L3: 2004-05 Contents
A4: 001 | B4: 001 | C4: Arlington Elementary School 122 Arceme Avenue | E4: 65,232 | F4: =E4*E212 -> $17,136,446 | G4: =+F4*G2 -> $1,285,233 | H4: =SUM(F4+G4) -> $18,421,680 | I4: =H4*0.9 -> $16,579,512 | L4: $755,644
A5: 002 | B5: 001 | C5: Ashland Elementary School 195 North Ashland Avenue | E5: 51,330 | F5: =E5*E212 -> $13,484,391 | G5: =+F5*G2 -> $1,011,329 | H5: $14,495,720 | I5: $13,046,148 | L5: $509,652
A6: 003 | B6: 001 | C6: Athens-Chilesburg Elementary School 930 Jouett Creek Drive | E6: 71,196 | F6: =E6*E212 -> $18,703,189 | G6: =+F6*G2 -> $1,402,739 | H6: $20,105,928 | I6: $18,095,336 | L6: $1,080,000
A7: 004 | B7: 001 | C7: Booker T. Washington Elementary 707 Howard Street | E7: 53,816 | F7: =E7*E212 -> $14,137,463 | G7: =+F7*G2 -> $1,060,310 | H7: $15,197,773 | I7: $13,677,996 | L7: $629,250
A8: 005 | B8: 001 | C8: Breckinridge Elementary School 2101 St. Mathilda Drive | E8: 72,578 | F8: =E8*E212 -> $19,066,241 | G8: =+F8*G2 -> $1,429,968 | H8: $20,496,209 | I8: $18,446,588 | L8: $925,528
C9: Brenda Cowen Elementary School 4701 Athens-Boonesboro Rd. | E9: 80,948 | F9: =E9*E212 -> $21,265,040 | G9: =+F9*G2 -> $1,594,878 | H9: $22,859,918 | I9: $20,573,926
A10: 006 | B10: 001 | C10: Cardinal Valley Elementary School 218 Mandalay Road | E10: 74,964 | F10: =E10*E212 -> $19,693,043 | G10: =+F10*G2 -> $1,476,978 | H10: $21,170,021 | I10: $19,053,019 | L10: $1,005,713
A11: 007 | B11: 001 | C11: Cassidy Elementary School 1125 Tates Creek Road | E11: 73,934 | F11: =E11*E212 -> $19,422,462 | G11: =+F11*G2 -> $1,456,685 | H11: $20,879,146 | I11: $18,791,232 | L11: $901,065
A12: 008 | B12: 001 | C12: Clays Mill Elementary School 2319 Clays Mill Road | E12: 84,632 | F12: =E12*E212 -> $22,232,826 | G12: =+F12*G2 -> $1,667,462 | H12: $23,900,288 | I12: $21,510,260 | L12: $952,709
C13: Coventry Oak Elementary School 2550 Georgetown Road/Spurr Road | E13: 73,943 | F13: =E13*E212 -> $19,424,826 | G13: =+F13*G2 -> $1,456,862 | H13: $20,881,688 | I13: $18,793,519
A14: 009 | B14: 001 | C14: Deep Springs Elementary School 1919 Brynell Drive | E14: 69,396 | F14: =E14*E212 -> $18,230,329 | G14: =+F14*G2 -> $1,367,275 | H14: $19,597,604 | I14: $17,637,844 | L14: $869,806
A15: 010 | B15: 001 | C15: Dixie Elementary School 1940 Eastland Parkway | E15: 63,626 | F15: =E15*E212 -> $16,714,550 | G15: =+F15*G2 -> $1,253,591 | H15: $17,968,141 | I15: $16,171,327 | L15: $706,717
A16: 011 | B16: 001 | C16: Garden Springs Elementary School 2151 Garden Springs Drive | E16: 77,743 | F16: =E16*E212 -> $20,423,086 | G16: =+F16*G2 -> $1,531,731 | H16: $21,954,818 | I16: $19,759,336 | L16: $1,007,072
C17: Garrett Morgan Elementary 1150 Passage Mound Way/Polo Club Blvd | E17: 73,300 | F17: =E17*E212 -> $19,255,910 | G17: =+F17*G2 -> $1,444,193 | H17: $20,700,103 | I17: $18,630,093
A18: 012 | B18: 001 | C18: Glendover Elementary School 710 Glendover Road | E18: 73,068 | F18: =E18*E212 -> $19,194,964 | G18: =+F18*G2 -> $1,439,622 | H18: $20,634,586 | I18: $18,571,127 | L18: $1,166,084
A19: 013 | B19: 001 | C19: Harrison Elementary School 161 Bruce Street | E19: 56,300 | F19: =E19*E212 -> $14,790,010 | G19: =+F19*G2 -> $1,109,251 | H19: $15,899,261 | I19: $14,309,335 | L19: $636,046
A20: 014 | B20: 001 | C20: James Lane Allen Elementary School 1901 Appomattox Road | E20: 73,832 | F20: =E20*E212 -> $19,395,666 | G20: =+F20*G2 -> $1,454,675 | H20: $20,850,341 | I20: $18,765,307 | L20: $747,490
A21: 015 | B21: 001 | C21: Johnson Building 123 East Sixth Street | E21: 47,790 | F21: =E21*E212 -> $12,554,433 | G21: =+F21*G2 -> $941,582 | H21: $13,496,015 | I21: $12,146,414 | L21: $569,451
A22: 017 | B22: 001 | C22: Julius Marks Elementary School 3277 Pepperhill Road | E22: 60,411 | F22: =E22*E212 -> $15,869,970 | G22: =+F22*G2 -> $1,190,248 | H22: $17,060,217 | I22: $15,354,196 | L22: $1,099,489
A23: 018 | B23: 001 | C23: Lansdowne Elementary School 336 Redding Road | E23: 60,532 | F23: =E23*E212 -> $15,901,756 | G23: =+F23*G2 -> $1,192,632 | H23: $17,094,388 | I23: $15,384,949 | L23: $937,760
A24: 018 | B24: 002 | C24: Gymnasium | E24: 6,420 | F24: =E24*E212 -> $1,686,534 | G24: =+F24*G2 -> $126,490 | H24: $1,813,024 | I24: $1,631,722 | L24: $13,591
A25: 019 | B25: 001 | C25: Liberty Elementary School 2585 Liberty Road | E25: 71,900 | F25: =E25*E212 -> $18,888,130 | G25: =+F25*G2 -> $1,416,610 | H25: $20,304,740 | I25: $18,274,266 | L25: $631,968
A26: 019 | B26: 001 | C26: The Learning Center 475 Price Road | E26: 47,131 | F26: =E26*E212 -> $12,381,314 | G26: =+F26*G2 -> $928,599 | H26: $13,309,912 | I26: $11,978,921 | L26: $631,968
A27: 020 | B27: 001 | C27: Mary Todd Elementary School 551 Parkside Drive | E27: 70,800 | F27: =E27*E212 -> $18,599,160 | G27: =+F27*G2 -> $1,394,937 | H27: $19,994,097 | I27: $17,994,687 | L27: $933,682
A28: 021 | B28: 001 | C28: Maxwell Elementary School 301 Woodland Avenue | E28: 49,286 | F28: =E28*E212 -> $12,947,432 | G28: =+F28*G2 -> $971,057 | H28: $13,918,490 | I28: $12,526,641 | L28: $645,559
A29: 022 | B29: 001 | C29: Meadowthorpe Elementary School 1710 N. Forbes Road | E29: 69,460 | F29: =E29*E212 -> $18,247,142 | G29: =+F29*G2 -> $1,368,536 | H29: $19,615,678 | I29: $17,654,110 | L29: $429,467
A30: 023 | B30: 001 | C30: Millcreek Elementary School 1212 Reva Ridge Way | E30: 71,300 | F30: =E30*E212 -> $18,730,510 | G30: =+F30*G2 -> $1,404,788 | H30: $20,135,298 | I30: $18,121,768 | L30: $1,051,922
A31: 024 | B31: 001 | C31: Northern Elementary School 340 Rookwood Extended | E31: 67,310 | F31: =E31*E212 -> $17,682,337 | G31: =+F31*G2 -> $1,326,175 | H31: $19,008,512 | I31: $17,107,661 | L31: $835,829
A32: 025 | B32: 001 | C32: Picadome Elementary School 1642 Harrodsburg Road | E32: 57,302 | F32: =E32*E212 -> $15,053,235 | G32: =+F32*G2 -> $1,128,993 | H32: $16,182,228 | I32: $14,564,005 | L32: $811,366
C33: Preschool Center 460 Springhill | E33: 10,759 | F33: =E33*E212 -> $2,826,389 | G33: =+F33*G2 -> $211,979 | H33: $3,038,368 | I33: $2,734,532
C34: RISE / Junior Achievement Biztown/Newcomers 2420 Spurr Road | E34: 61,279 | F34: =E34*E212 -> $16,097,993 | G34: =+F34*G2 -> $1,207,349 | H34: $17,305,343 | I34: $15,574,809
C35: 2420 Spurr Road (Ed. Tech. Center) | E35: 1,600 | F35: =E35*E212 -> $420,320 | G35: =+F35*G2 -> $31,524 | H35: $451,844 | I35: $406,660
A36: 026 | B36: 001 | C36: Rosa Parks Elementary School 1251 Beaumont Centre Lane | E36: 68,985 | F36: =E36*E212 -> $18,122,360 | G36: =+F36*G2 -> $1,359,177 | H36: $19,481,536 | I36: $17,533,383 | L36: $1,080,000
A37: 027 | B37: 001 | C37: Russell Cave Elementary School 3375 Russell Cave Road | E37: 40,100 | F37: =E37*E212 -> $10,534,270 | G37: =+F37*G2 -> $790,070 | H37: $11,324,340 | I37: $10,191,906 | L37: $405,003
A38: 027 | B38: 002 | C38: Garage (metal prefabricated) | E38: 900 | F38: =E38*E212 -> $236,430 | G38: =+F38*G2 -> $17,732 | H38: $254,162 | I38: $228,746
A39: 028 | B39: 001 | C39: Sandersville Elementary School 3025 Sandersville Road | E39: 73,122 | F39: =E39*E212 -> $19,209,149 | G39: =+F39*G2 -> $1,440,686 | H39: $20,649,836 | I39: $18,584,852 | L39: $1,261,219
A40: 028 | B40: 001 | C40: Southern Elementary School 340 Wilson-Downing Road | E40: 70,659 | F40: =E40*E212 -> $18,562,119 | G40: =+F40*G2 -> $1,392,159 | H40: $19,954,278 | I40: $17,958,850 | L40: $1,261,219
A41: 029 | B41: 001 | C41: Squires Elementary School 3337 Squire Oak Road | E41: 79,656 | F41: =E41*E212 -> $20,925,631 | G41: =+F41*G2 -> $1,569,422 | H41: $22,495,054 | I41: $20,245,548 | L41: $1,073,667
A42: 030 | B42: 001 | C42: Stonewall Elementary School 3215 Cornwall Drive | E42: 78,294 | F42: =E42*E212 -> $20,567,834 | G42: =+F42*G2 -> $1,542,588 | H42: $22,110,421 | I42: $19,899,379 | L42: $1,046,485
A43: 031 | B43: 001 | C43: Tates Creek Elementary School 1113 Centre Parkway | E43: 79,087 | F43: =E43*E212 -> $20,776,155 | G43: =+F43*G2 -> $1,558,212 | H43: $22,334,367 | I43: $20,100,930 | L43: $1,054,640
A44: 033 | B44: 001 | C44: Veterans Park Elementary School 4351 Clearwater Way | E44: 73,467 | F44: =E44*E212 -> $19,299,781 | G44: =+F44*G2 -> $1,447,484 | H44: $20,747,264 | I44: $18,672,538 | J44: =E48*E212 -> $714,899,696 | L44: $1,080,000
C45: Wellington Elementary School 3280 Keithshire Way | E45: 73,990 | F45: =E45*E212 -> $19,437,173 | G45: =+F45*G2 -> $1,457,788 | H45: $20,894,961 | I45: $18,805,465
A46: 034 | B46: 001 | C46: William Wells Brown Elementary School 555 E. Fifth Street | E46: 69,297 | F46: =E46*E212 -> $18,204,322 | G46: =+F46*G2 -> $1,365,324 | H46: $19,569,646 | I46: $17,612,681 | J46: =#REF!+#REF! -> #REF! | L46: $716,231
A47: 034 | B47: 001 | C47: Yates Elementary School 695 E. New Circle Road | E47: 70,679 | F47: =E47*E212 -> $18,567,373 | G47: =+F47*G2 -> $1,392,553 | H47: $19,959,926 | I47: $17,963,934 | J47: =F48+G48 -> $768,517,173 | L47: $716,231
C48: SubTotals | E48: =SUM(E4:E47) -> 2,721,354 | F48: 714,899,696 | G48: 53,617,477 | H48: 768,517,173 | I48: 691,665,456
C50: MIDDLE SCHOOLS | E50: =+E213 -> $265.78 | F50: =+F2 -> per sq foot | G50: 7.50%
A51: Loc. No. | B51: Bldg. No. | C51: Building and Address | D51: Serial # | E51: Square Footage | F51: Building | G51: Contents | H51: Total Value | I51: .90 Coinsurance
A52: 035 | B52: 001 | C52: Beaumont Middle School 2080 Georgian Way | E52: 95,360 | F52: =E52*E213 -> $25,344,781 | G52: =+F52*G2 -> $1,900,859 | H52: =SUM(F52+G52) -> $27,245,639 | I52: =H52*0.9 -> $24,521,075 | L52: $1,057,358
A53: 037 | B53: 001 | C53: Bryan Station Middle School 1865 Wickland Drive | E53: 103,892 | F53: =E53*E213 -> $27,612,416 | G53: =+F53*G2 -> $2,070,931 | H53: $29,683,347 | I53: $26,715,012 | L53: $1,032,895
A54: 038 | B54: 001 | C54: Crawford Middle School 1813 Charleston Drive | E54: 100,349 | F54: =E54*E213 -> $26,670,757 | G54: =+F54*G2 -> $2,000,307 | H54: $28,671,064 | I54: $25,803,958 | L54: $1,099,489
C55: Edythe J. Hayes Middle School 260 Richardson Place | E55: 103,771 | F55: =E55*E213 -> $27,580,256 | G55: =+F55*G2 -> $2,068,519 | H55: $29,648,776 | I55: $26,683,898 | L55: $1,099,489
C56: Central Kentucky Japanese School Addition | E56: 12,972 | F56: =E56*E213 -> $3,447,698 | G56: =+F56*G2 -> $258,577 | H56: $3,706,276 | I56: ----- | L56: $150,000 | M56: =H56*0.9 -> $3,335,648
A57: 039 | B57: 001 | C57: Jessie M. Clark Middle School 3341 Clays Mill Road | E57: 125,321 | F57: =E57*E213 -> $33,307,815 | G57: =+F57*G2 -> $2,498,086 | H57: $35,805,902 | I57: =H57*0.9 -> $32,225,311 | L57: $1,155,088
A58: 040 | B58: 001 | C58: Leestown Middle School 2010 Leestown Road | E58: 109,197 | F58: =E58*E213 -> $29,022,379 | G58: =+F58*G2 -> $2,176,678 | H58: $31,199,057 | I58: $28,079,151 | L58: $1,049,204
A59: 041 | B59: 001 | C59: Lexington Traditional Middle School 350 North Limestone Street | E59: 88,547 | F59: =E59*E213 -> $23,534,022 | G59: =+F59*G2 -> $1,765,052 | H59: $25,299,073 | I59: $22,769,166 | L59: $1,005,713
A60: 041 | B60: 002 | C60: Gymnasium | E60: 12,953 | F60: =E60*E213 -> $3,442,648 | G60: =+F60*G2 -> $258,199 | H60: $3,700,847 | I60: $3,330,762 | L60: $13,591
A61: 042 | B61: 001 | C61: Morton Middle School 1225 Tates Creek Road | E61: 108,440 | F61: =E61*E213 -> $28,821,183 | G61: =+F61*G2 -> $2,161,589 | H61: $30,982,772 | I61: $27,884,495 | L61: $1,164,725
A62: 036 | B62: 001 | C62: SCAPA Bluegrass 400 Lafayette Parkway | E62: 62,326 | F62: =E62*E213 -> $16,565,004 | G62: =+F62*G2 -> $1,242,375 | H62: $17,807,380 | I62: $16,026,642 | L62: $400,000
A63: 043 | B63: 001 | C63: Southern Middle School 400 Wilson-Downing Road | E63: 92,685 | F63: =E63*E213 -> $24,633,819 | G63: =+F63*G2 -> $1,847,536 | H63: $26,481,356 | I63: $23,833,220 | J63: Double Check: | L63: $1,193,265
A64: 044 | B64: 001 | C64: Tates Creek Middle School 1105 Centre Parkway | E64: 109,500 | F64: =E64*E213 -> $29,102,910 | G64: =+F64*G2 -> $2,182,718 | H64: $31,285,628 | I64: $28,157,065 | J64: =E66*E213 -> $323,601,768 | L64: $1,422,948
A65: 045 | B65: 001 | C65: Winburn Middle School 1060 Winburn Drive | E65: 92,242 | F65: =E65*E213 -> $24,516,079 | G65: =+F65*G2 -> $1,838,706 | H65: $26,354,785 | I65: $23,719,306 | J65: =H66*0.9 -> $313,084,710 | L65: $1,155,211
C66: SubTotals | E66: =SUM(E52:E65) -> 1,217,555 | F66: $323,601,768 | G66: $24,270,133 | H66: $347,871,901 | I66: $309,749,063
C68: Note: According to a lease agreement between the Fayette County Board of Education (FCBE) and the Central Kentucky Japanese School (CKJS), "[FCBE] agrees to insure/self-insure the [CKJS Addition to the Edythe J. Hayes Middle School] for its full replacement value in accordance with the replacement cost estimates provided annually by the chief state school officer." As a result, CKJS is to be insured for the full replacement value stated in this Schedule of Values, and is to be exempted, by manual endorsement, from any co-insurance provision(s) applicable to other facilities.
C69: HIGH SCHOOLS | E69: =+E214 -> $274.69 | F69: =+F2 -> per sq foot | G69: 7.50%
A70: Loc. No. | B70: Bldg. No. | C70: Building and Address | D70: Serial # | E70: Square Footage | F70: Building | G70: Contents | H70: Total Value | I70: .90 Coinsurance
A71: 046 | B71: 001 | C71: Bryan Station High School 201 Eastin Road | E71: 278,574 | F71: =E71*E214 -> $76,521,492 | G71: =+F71*G2 -> $5,739,112 | H71: =SUM(F71+G71) -> $82,260,604 | I71: =H71*0.9 -> $74,034,544 | L71: $3,800,000
C72: Frederick Douglass High School 2000 Winchester Rd. 40509 | E72: 285,790 | F72: =E72*E214 -> $78,503,655 | G72: =+F72*G2 -> $5,887,774 | H72: $84,391,429 | I72: $75,952,286
A73: 047 | B73: 001 | C73: Henry Clay High School 2100 Fontaine Road | E73: 248,178 | F73: =E73*E214 -> $68,172,015 | G73: =+F73*G2 -> $5,112,901 | H73: $73,284,916 | I73: $65,956,424 | L73: $3,155,765
A74: 048 | B74: 001 | C74: Lafayette High School 401 Reed Lane | E74: 249,753 | F74: =E74*E214 -> $68,604,652 | G74: =+F74*G2 -> $5,145,349 | H74: $73,750,000 | I74: $66,375,000 | L74: $3,332,445
A75: 049 | B75: 001 | C75: Paul Laurence Dunbar High School 1600 Man-O-War Boulevard | E75: 271,514 | F75: =E75*E214 -> $74,582,181 | G75: =+F75*G2 -> $5,593,664 | H75: $80,175,844 | I75: $72,158,260 | L75: $3,706,560
A76: 050 | B76: 001 | C76: Tates Creek High School 1111 Centre Parkway | E76: 224,192 | F76: =E76*E214 -> $61,583,300 | G76: =+F76*G2 -> $4,618,748 | H76: $66,202,048 | I76: $59,581,843 | J76: Double Check: | L76: $2,300,355.20
A77: 052 | B77: 001 | C77: Martin Luther King Academy 2200 Liberty Road | E77: 40,746 | F77: =E77*E214 -> $11,192,519 | G77: =+F77*G2 -> $839,439 | H77: $12,031,958 | I77: $10,828,762 | J77: =H78*0.9 -> $424,887,120 | L77: $1,000,000
C78: SubTotals | E78: =SUM(E71:E77) -> 1,598,747 | F78: $439,159,813 | G78: $32,936,986 | H78: $472,096,799 | I78: $424,887,120
C80: VOCATIONAL SCHOOLS @ | E80: =+E215 -> $242.05 | F80: =+F2 -> per sq foot | G80: 7.50%
A81: Loc. No. | B81: Bldg. No. | C81: Building and Address | D81: Serial # | E81: Square Footage | F81: Building | G81: Contents | H81: Total Value | I81: .90 Coinsurance | J81: Doublecheck
A82: 051 | B82: 001 | C82: Eastside Center for Applied Technology 2208 Liberty Road | E82: 43,496 | F82: =E82*E215 -> $10,528,207 | G82: =+F82*G2 -> $789,616 | H82: =SUM(F82+G82) -> $11,317,822 | I82: =H82*0.9 -> $10,186,040 | J82: =SUM(F82:F89) -> $67,705,984 | L82: $652,355
A83: 051 | B83: 002 | C83: Garage (metal prefabricated) | E83: 900 | F83: =E83*E215 -> $217,845 | G83: =+F83*G2 -> $16,338 | H83: $234,183 | I83: $210,765 | J83: =SUM(F90:G90) -> $72,783,933
C84: Locust Trace Agriscience Farm - Academic Bldg 242 Locust Farm Road | E84: 43,081 | F84: =E84*E215 -> $10,427,756 | G84: =+F84*G2 -> $782,082 | H84: $11,209,838 | I84: $10,088,854
C85: Greenhouse 242 Locust Farm Road | E85: 3,746 | F85: =E85*E215 -> $906,719 | G85: =+F85*G2 -> $68,004 | H85: $974,723 | I85: $877,251
C86: Arena 252 Locust Farm Road | E86: 19,257 | F86: =E86*E215 -> $4,661,157 | G86: =+F86*G2 -> $349,587 | H86: $5,010,744 | I86: $4,509,669
C87: Barn 272 Locust Farm Road | E87: 2,736 | F87: =E87*E215 -> $662,249 | G87: =+F87*G2 -> $49,669 | H87: $711,917 | I87: $640,726
C88: Southside Center for Applied Technology 1800 Harrodsburg Road | E88: 41,503 | F88: =E88*E215 -> $10,045,801 | G88: =+F88*G2 -> $753,435 | H88: $10,799,236 | I88: $9,719,313
A89: 053 | B89: 001 | C89: STEAM/Success Academy 1555 Georgetown Road (under reno 19-20) | E89: 125,000 | F89: =E89*E215 -> $30,256,250 | G89: =+F89*G2 -> $2,269,219 | H89: $32,525,469 | I89: $29,272,922 | J89: =H90*0.9 -> $36,232,618 | L89: $733,899
C90: SubTotals | E90: =SUM(E82:E89) -> 279,719 | F90: $67,705,984 | G90: $5,077,949 | H90: =SUM(H82:H88) -> $40,258,464 | I90: =SUM(I82:I89) -> $65,505,539
C92: CENTRAL OFFICE | E92: =+E217 -> $222.39 | F92: =+F2 -> per sq foot | G92: 7.50%
A93: Loc. No. | B93: Bldg. No. | C93: Building and Address | D93: Serial # | E93: Square Footage | F93: Building | G93: Contents | H93: Total Value | I93: .90 Coinsurance
A94: 054 | B94: 001 | C94: IAKSS Building 701-707 East Main Street | E94: 112,283 | F94: =E94*E217 -> $24,970,616 | G94: =+F94*G2 -> $1,872,796 | H94: =SUM(F94+G94) -> $26,843,413 | I94: =H94*0.9 -> $24,159,071 | L94: $1,902,701
A95: 054 | B95: 002 | C95: IAKSS Building - Annex Rear 701-703 East Main Street | E95: 20,739 | F95: =E95*E217 -> $4,612,146 | G95: =+F95*G2 -> $345,911 | H95: $4,958,057 | I95: $4,462,251
A96: 058 | B96: 001 | C96: Joe G. White Building 400 Springhill Drive | E96: 22,172 | F96: =E96*E217 -> $4,930,831 | G96: =+F96*G2 -> $369,812 | H96: $5,300,643 | I96: $4,770,579 | J96: Double Check: | L96: $395,366
A97: 055 | B97: 001 | C97: John W. Ambrose Building 128 Walton Avenue | E97: 9,360 | F97: =E97*E217 -> $2,081,570 | G97: =+F97*G2 -> $156,118 | H97: $2,237,688 | I97: $2,013,919 | J97: =E102*E217 -> $122,167,723 | L97: $135,907
A98: 056 | B98: 001 | C98: Lexington Women's Club Clothing Center 700 Bullock Place | E98: 3,150 | F98: =E98*E217 -> $700,529 | G98: =+F98*G2 -> $52,540 | H98: $753,068 | I98: $677,761 | J98: =F102+G102 -> $131,330,302
A99: 061 | B99: 001 | C99: Maintenance Building 461 Springhill Drive | E99: 32,548 | F99: =E99*E217 -> $7,238,350 | G99: =+F99*G2 -> $542,876 | H99: $7,781,226 | I99: $7,003,103 | J99: =H102*0.9 -> $118,197,272 | L99: $864,864
C100: 101 Midland | E100: 162,476 | F100: =E100*E217 -> $36,133,038 | G100: =+F100*G2 -> $2,709,978 | H100: $38,843,015 | I100: $34,958,714
C101: 450 Park Place | E101: 186,612 | F101: =E101*E217 -> $41,500,643 | G101: =+F101*G2 -> $3,112,548 | H101: $44,613,191 | I101: $40,151,872
C102: SubTotals | E102: =SUM(E94:E101) -> 549,340 | F102: $122,167,723 | G102: $9,162,579 | H102: $131,330,302 | I102: $118,197,272
C104: BUS GARAGES | E104: =+E218 -> $203.13 | F104: =+F2 -> per sq foot | G104: 7.50%
A105: Loc. No. | B105: Bldg. No. | C105: Building and Address | D105: Serial # | E105: Square Footage | F105: Building | G105: Contents | H105: Total Value | I105: .90 Coinsurance
A106: 057 | B106: 001 | C106: Liberty Bus Garage 2264 Liberty Road (Main Bldg.) | E106: 13,572 | F106: =E106*E218 -> $2,756,880 | G106: =+F106*G2 -> $206,766 | H106: =SUM(F106+G106) -> $2,963,646 | I106: =H106*0.9 -> $2,667,282 | L106: $271,814
A107: 057 | B107: 002 | C107: Shelters | E107: 36,960 | F107: =E107*E218 -> $7,507,685 | G107: =+F107*G2 -> $563,076 | H107: $8,070,761 | I107: $7,263,685 | J107: Double Check: | L107: $216,000
A108: 057 | B108: 003 | C108: Bus Wash | E108: 2,015 | F108: =E108*E218 -> $409,307 | G108: =+F108*G2 -> $30,698 | H108: $440,005 | I108: $396,004 | J108: =E111*E218 -> $16,284,729 | L108: $75,600
A109: 057 | B109: 004 | C109: Oil Storage Tank (Contents Only) | F109: =E109*E218 -> 0 | G109: =+F109*G2 -> 0 | H109: 0 | I109: 0 | J109: =F111+G111 -> $17,506,084 | L109: $356,400
C110: Miles Point Bus Garage 780 Milepoint Way | E110: 27,622 | F110: =E110*E218 -> $5,610,857 | G110: =+F110*G2 -> $420,814 | H110: =+F110+G110 -> $6,031,671 | I110: $5,428,504
C111: SubTotals | E111: =SUM(E106:E110) -> 80,169 | F111: $16,284,729 | G111: $1,221,355 | H111: $17,506,084 | I111: $15,755,475
C113: STORAGE BUILDINGS | E113: =+E219 -> $147.21 | F113: =+F2 -> per sq foot | G113: 7.50% | J113: Double Check:
A114: Loc. No. | B114: Bldg. No. | C114: Building and Address | D114: Serial # | E114: Square Footage | F114: Building | G114: Contents | H114: Total Value | I114: .90 Coinsurance | J114: =E117*E219 -> $22,308,498
C115: Russell Cave Warehouse, 1126 Russell Cave Rd | E115: 99,968 | F115: =E115*E219 -> $14,716,289 | G115: =+F115*G2 -> $1,103,722 | H115: =SUM(F115+G115) -> $15,820,011 | I115: =H115*0.9 -> $14,238,010
A116: 060 | B116: 001 | C116: Louis Mack Building, 460 Springhill Drive | E116: 51,574 | F116: =E116*E219 -> $7,592,209 | G116: =+F116*G2 -> $569,416 | H116: $8,161,624 | I116: $7,345,462 | J116: =F117+G117 -> $23,981,635 | L116: $3,088,800
C117: SubTotals | E117: =SUM(E115:E116) -> 151,542 | F117: $22,308,498 | G117: $1,673,137 | H117: $23,981,635 | I117: $21,583,472
C119: ATHLETIC FACILITIES | G119: =+G2 -> 7.50%
A120: 046 | B120: 004 | C120: Bryan Station High School Football Facilities | E120: 522,720 | F120: $4,197,441 | G120: =+F120*G2 -> $314,808 | H120: =SUM(F120+G120) -> $4,512,249 | I120: =H120*0.9 -> $4,061,024 | L120: $2,527,874
A121: 046 | B121: 004 | C121: Baseball / Softball Facilities | E121: 6,368 | F121: =+E121*E220 -> $358,900 | G121: =+F121*G2 -> $26,918 | H121: $385,818 | I121: $347,236 | L121: $2,527,874
C122: Frederick Douglass High School Football Facilities | E122: 522,720 | F122: $4,197,441 | G122: =+F122*G2 -> $314,808 | H122: $4,512,249 | I122: $4,061,024
C123: Baseball / Softball Facilities | E123: 6,368 | F123: =+E123*E220 -> $358,900 | G123: =+F123*G2 -> $26,918 | H123: $385,818 | I123: $347,236
C124: P.L. Dunbar High School Football Facilities | E124: 522,720 | F124: $3,497,450 | G124: =+F124*G2 -> $262,309 | H124: $3,759,759 | I124: $3,383,783
C125: Baseball / Softball Facilities | E125: 5,120 | F125: =+E125*E220 -> $288,563 | G125: =+F125*G2 -> $21,642 | H125: $310,205 | I125: $279,185
A126: 047 | B126: 003 | C126: Henry Clay High School Football Stadium and Facilities | E126: 522,720 | F126: $3,497,450 | G126: =+F126*G2 -> $262,309 | H126: $3,759,759 | I126: $3,383,783 | L126: $3,155,765
A127: 047 | B127: 004 | C127: Baseball / Softball Facilities | E127: 5,120 | F127: =+E127*E220 -> $288,563 | G127: =+F127*G2 -> $21,642 | H127: $310,205 | I127: $279,185 | L127: $132,000
A128: 047 | B128: 005 | C128: Football Facility | E128: 4,000 | F128: =+E128*E220 -> $225,440 | G128: =+F128*G2 -> $16,908 | H128: $242,348 | I128: $218,113 | L128: $100,000
A129: 048 | B129: 002 | C129: Lafayette High School Football Stadium and Facilities | E129: 522,720 | F129: $4,197,441 | G129: =+F129*G2 -> $314,808 | H129: $4,512,249 | I129: $4,061,024 | L129: $3,332,445
A130: 048 | B130: 002 | C130: Baseball / Softball Facilities | E130: 6,800 | F130: =+E130*E220 -> $383,248 | G130: =+F130*G2 -> $28,744 | H130: $411,992 | I130: $370,792 | L130: $3,332,445
A131: 050 | B131: 002 | C131: Tates Creek High School Football Stadium and Facilities | E131: 435,600 | F131: $3,497,868 | G131: =+F131*G2 -> $262,340 | H131: $3,760,208 | I131: $3,384,187 | J131: =F133+G133 -> $27,165,794 | L131: $2,300,355.20
A132: 050 | B132: 003 | C132: Baseball / Softball Facilities | E132: 5,000 | F132: =+E132*E220 -> $281,800 | G132: =+F132*G2 -> $21,135 | H132: $302,935 | I132: $272,642 | J132: =H133*0.9 -> $24,449,215 | L132: $25,000
C133: SubTotals | E133: =SUM(E120:E132) -> 3,087,976 | F133: $25,270,506 | G133: $1,895,288 | H133: $27,165,794 | I133: $24,449,215
C135: PORTABLES (Rev. 8/21/21)
A136: Loc. No. | B136: Bldg. No. | D136: Serial # | E136: Square Footage | F136: Building | G136: Contents | H136: Total Value | I136: .90 Coinsurance | N136: classrooms
A137: 035 | B137: 002 | C137: Athens-Chilesburg Elementary 5,616 | L137: $8,986
C138: Double Relocatable Classroom | D138: CPX-74117 | E138: 1,632 | F138: $64,540 | G138: $9,166 | H138: =+F138+G138 -> $73,706 | I138: =+H138*0.9 -> $66,335 | N138: 2
C139: Double Relocatable Classroom | D139: CPX-75422 | E139: 1,632 | F139: $64,540 | G139: $9,166 | H139: $73,706 | I139: $66,335 | L139: $8,986 | N139: 2
A140: 035 | B140: 002 | C140: Double Relocatable Classroom | D140: CPX-73811 | E140: 1,632 | F140: $64,540 | G140: $9,166 | H140: $73,706 | I140: $66,335 | L140: $8,986 | N140: 2
C141: Restroom | D141: MDS-034788 | E141: 720 | F141: $42,000 | G141: $500 | H141: $42,500 | I141: $38,250 | N141: 0
C142: Beaumont Middle 10,880
A143: 035 | B143: 003 | C143: Double Relocatable Classroom (own) | D143: n/a | E143: 1,904 | F143: $20,000 | G143: $9,166 | H143: =+F143+G143 -> $29,166 | I143: =+H143*0.9 -> $26,249 | L143: $8,986 | N143: 2
C144: Double Relocatable Classroom (own) | D144: n/a | E144: 1,904 | F144: $20,000 | G144: $9,166 | H144: $29,166 | I144: $26,249 | L144: $8,986 | N144: 2
C145: Double Relocatable Classroom (own) | D145: n/a | E145: 1,904 | F145: $20,000 | G145: $9,166 | H145: $29,166 | I145: $26,249 | N145: 2
C146: Double Relocatable Classroom | D146: CPX-73814 | E146: 1,632 | F146: $64,540 | G146: $9,166 | H146: $73,706 | I146: $66,335 | N146: 2
C147: Double Relocatable Classroom | D147: CPX-70070 | E147: 1,632 | F147: $56,329 | G147: $9,166 | H147: $65,495 | I147: $58,945 | N147: 2
C148: Double Relocatable Classroom | D148: CPX-70081 | E148: 1,904 | F148: $56,329 | G148: $9,166 | H148: $65,495 | I148: $58,945 | N148: 2
C149: Cassidy Elementary 1,792
C150: Double Relocatable Classroom | D150: CPX-72598 | E150: 1,792 | F150: $56,329 | G150: $9,156 | H150: =+F150+G150 -> $65,485 | I150: =+H150*0.9 -> $58,937 | N150: 2
C151: EJ Hayes Middle School 7,972
C152: Double Relocatable Classroom | D152: CPX-70052 | E152: 1,904 | F152: $64,540 | G152: $9,166 | H152: =+F152+G152 -> $73,706 | I152: =+H152*0.9 -> $66,335 | N152: 2
C153: Double Relocatable Classroom | D153: CPX-75420 | E153: 1,632 | F153: $56,329 | G153: $9,166 | H153: $65,495 | I153: $58,946 | N153: 2
C154: Double Relocatable Classroom | D154: CPX-72628 | E154: 1,904 | F154: $64,540 | G154: $9,166 | H154: $73,706 | I154: $66,335 | N154: 2
C155: Double Relocatable Classroom | D155: CPX-73298 | E155: 1,632 | F155: $56,329 | G155: $9,166 | H155: $65,495 | I155: $58,946 | N155: 2
C156: Garrett Morgan Elementary School 3,920
C157: Double Relocate Classroom | D157: 2325807-08 | E157: 1,960 | F157: $90,000 | G157: $9,166 | H157: =+F157+G157 -> $99,166 | I157: =+H157*0.9 -> $89,249 | N157: 2
C158: Double Relocatable Clssroom | D158: 2325809-10 | E158: 1,960 | F158: $90,000 | G158: $9,166 | H158: $99,166 | I158: $89,249 | N158: 2
C159: Henry Clay High School 15,552
C160: Double Relocatable Clssroom | D160: CPX-115183 | E160: 1,632 | F160: $64,540 | G160: $9,166 | H160: =+F160+G160 -> $73,706 | I160: =+H160*0.9 -> $66,335 | N160: 2
C161: Double Relocatable Clssroom | D161: CPX-113238 | E161: 1,632 | F161: $64,540 | G161: $9,166 | H161: $73,706 | I161: $66,335 | N161: 2
C162: Relocatable Classrooms | D162: ARIES-80709 | E162: 12,288 | F162: $516,320 | G162: $64,162 | H162: $580,482 | I162: $522,434 | N162: 14
C163: Eastside Technical 1,632
C164: Double Relocatable Classroom | D164: CPX-73816 | E164: 1,632 | F164: $64,540 | G164: $9,166 | H164: =+F164+G164 -> $73,706 | I164: =+H164*0.9 -> $66,335 | N164: 2
C165: Jessie Clark Middle School 7,168
C166: Relocatable Classrooms | D166: Van-38613 | E166: 7,168 | F166: $287,795 | G166: $36,664 | H166: =+F166+G166 -> $324,459 | I166: =+H166*0.9 -> $292,013 | N166: 8
C167: Julius Marks Elementary 4,576
C168: Restroom | D168: MDS-019317 | E168: 768 | F168: $42,000 | G168: $500 | H168: =+F168+G168 -> $42,500 | I168: =+H168*0.9 -> $38,250 | N168: 0
C169: Double Relocatable Classroom | D169: CPX-110057 | E169: 1,904 | F169: $81,200 | G169: $9,166 | H169: $90,366 | I169: $81,329 | N169: 2
C170: Double Relocatable Classroom | D170: CPX-109186 | E170: 1,904 | F170: $81,600 | G170: $9,166 | H170: $90,766 | I170: $81,689 | N170: 2
C171: Lansdowne Elementary School 1,632
C172: Double Relocatable Classroom | D172: CPX-75418 | E172: 1,632 | F172: $64,540 | G172: $9,166 | H172: =+F172+G172 -> $73,706 | I172: =+H172*0.9 -> $66,335 | N172: 2
C173: Leestown Middle School 13,648
C174: Double Relocatable Classroom | D174: 2323271-72 | E174: 1,960 | F174: $90,000 | G174: $9,166 | H174: =+F174+G174 -> $99,166 | I174: =+H174*0.9 -> $89,249 | N174: 2
C175: Double Relocatable Classroom | D175: 2323269-70 | E175: 1,960 | F175: $90,000 | G175: $9,166 | H175: $99,166 | I175: $89,249 | N175: 2
C176: Relocatable Classrooms (future) | D176: Van-39226 | E176: 9,728 | F176: $446,612 | G176: $45,830 | H176: =F176+G176 -> $492,442 | I176: $443,198 | N176: 10
C177: Liberty Elementary 3,264
C178: Double Relocatable Classroom | D178: CPX-74119 | E178: 1,632 | F178: $64,540 | G178: $9,166 | H178: =+F178+G178 -> $73,706 | I178: =+H178*0.9 -> $66,335 | N178: 2
C179: Double Relocatable Classroom | D179: CPX-75277 | E179: 1,632 | F179: $64,540 | G179: $9,166 | H179: $73,706 | I179: $66,335 | N179: 2
C180: Morton Middle School 3,536
C181: Double Relocatable Classroom | D181: CPX-73065 | E181: 1,904 | F181: $81,200 | G181: $9,166 | H181: =+F181+G181 -> $90,366 | I181: =+H181*0.9 -> $81,329 | N181: 2
C182: Double Relocatable Classroom | D182: CPX-73813 | E182: 1,632 | F182: $64,540 | G182: $9,166 | H182: $73,706 | I182: $66,335 | N182: 2
C183: Northern Elementary 1,904
C184: Double Relocatable Classroom | D184: CPX-72593 | E184: 1,904 | F184: $56,329 | G184: $9,166 | H184: =+F184+G184 -> $65,495 | I184: =+H184*0.9 -> $58,946 | N184: 2
C185: Rosa Parks Elementary School 1,500
C186: Double Relocatable Classroom (own) | D186: n/a | E186: 1,500 | F186: $20,000 | G186: $9,166 | H186: =+F186+G186 -> $29,166 | I186: =+H186*0.9 -> $26,249 | N186: 2
C187: Southern Middle School 3,808
C188: Double Relocatable Classroom | D188: CPX-70108 | E188: 1,904 | F188: $64,540 | G188: $9,166 | H188: =+F188+G188 -> $73,706 | I188: =+H188*0.9 -> $66,335 | N188: 2
C189: Double Relocatable Classroom | D189: CPX-70108 | E189: 1,904 | F189: $64,540 | G189: $9,166 | H189: $73,706 | I189: $66,335 | N189: 2
C190: Veterans Park Elementary 4,176
C191: Double Relocatable Classroom | D191: CPX-114099 | E191: 1,776 | F191: $84,000 | G191: $9,166 | H191: =+F191+G191 -> $93,166 | I191: =+H191*0.9 -> $83,849 | N191: 2
C192: Double Relocatable Classroom | D192: CPX-111966 | E192: 1,632 | F192: $81,600 | G192: $9,166 | H192: $90,766 | I192: $81,689 | N192: 2
C193: Restroom | D193: MDS-078509 | E193: 768 | F193: $42,000 | G193: $500 | H193: $42,500 | I193: $38,250 | N193: 0
C194: Winburn Middle 5,376 | N194: 6
C195: Relocatable Classrooms | D195: Van-38612 | E195: 5,376 | F195: $215,846 | G195: $27,498 | H195: =+F195+G195 -> $243,344 | I195: =+H195*0.9 -> $219,010
C196: Liberty Road Bus Garage 3,640
C197: Double Relocatable Offices (own) | D197: n/a | E197: 1,500 | F197: $45,000 | G197: $15,000 | H197: =+F197+G197 -> $60,000 | I197: =+H197*0.9 -> $54,000
C198: Double Relocatable Offices (own) | D198: n/a | E198: 1,500 | F198: $45,000 | G198: $15,000 | H198: $60,000 | I198: $54,000
C199: Temp Covid 40 x 8 $15,108 | D199: Covid Office | E199: 320 | F199: $12,848 | G199: $500 | H199: =F199+G199 -> $13,348 | I199: $12,013
C200: Temp Covid 40 x 8 $15,108 | D200: Covid Office | E200: 320 | F200: $12,848 | G200: $500 | H200: $13,348 | I200: $12,013
C201: SubTotals ** | E201: =SUM(E138:E200) -> 100,692 | F201: =SUM(F138:F198) -> $3,838,247 | G201: $517,285 | H201: $4,355,532 | I201: $3,919,979
C203: UNIMPROVED LAND
A204: Loc. No. | B204: Bldg. No. | C204: Building and Address | E204: Square Footage | F204: Building | G204: Contents | H204: Total Value | I204: .90 Coinsurance
C205: Southern Elementary & Middle Property (Meadowbrook Golf Course) 400 Wilson Downing | J205: Double Check:
C206: 4701 Athens Boonesboro Rd (current I am 3rd soccer fields)
C207: 2345 Polo Club Blvd (future middle school) | G207: =+F207*G2 -> 0 | H207: =SUM(F207+G207) -> 0 | I207: =H207*0.9 -> 0
C208: SubTotals | E208: =SUM(E205:E207) -> 0 | F208: 0 | G208: 0 | H208: 0 | I208: 0
C209: GRAND TOTALS | E209: =SUM(E48+E66+E78+E90+E102+E111+E117+E133+E201+E208) -> 9,787,094 | F209: $1,735,236,964 | G209: $130,372,189 | H209: $1,833,083,684 | I209: $1,675,712,590 | L209: =SUM(L4:L198) -> $86,646,018
... 9 more rows

Sheet 21-22 contents 5%
C1: FAYETTE COUNTY PUBLIC SCHOOLS SCHEDULE OF VALUES - BUILDINGS AND CONTENTS (EFFECTIVE July 1, 2021) 9/8/2021
C2: ELEMENTARY SCHOOLS | E2: =E212 -> $262.70 | F2: per sq foot | G2: 5.00%
A3: Loc. No. | B3: Bldg. No. | C3: Building and Address | D3: Serial # | E3: Square Footage | F3: Building | G3: Contents | H3: Total Value | I3: .90 Coinsurance | L3: 2004-05 Contents
A4: 001 | B4: 001 | C4: Arlington Elementary School 122 Arceme Avenue | E4: 65,232 | F4: =E4*E212 -> $17,136,446 | G4: =+F4*G2 -> $856,822 | H4: =SUM(F4+G4) -> $17,993,269 | I4: =H4*0.9 -> $16,193,942 | L4: $755,644
A5: 002 | B5: 001 | C5: Ashland Elementary School 195 North Ashland Avenue | E5: 51,330 | F5: =E5*E212 -> $13,484,391 | G5: =+F5*G2 -> $674,220 | H5: $14,158,611 | I5: $12,742,750 | L5: $509,652
A6: 003 | B6: 001 | C6: Athens-Chilesburg Elementary School 930 Jouett Creek Drive | E6: 71,196 | F6: =E6*E212 -> $18,703,189 | G6: =+F6*G2 -> $935,159 | H6: $19,638,349 | I6: $17,674,514 | L6: $1,080,000
A7: 004 | B7: 001 | C7: Booker T. Washington Elementary 707 Howard Street | E7: 53,816 | F7: =E7*E212 -> $14,137,463 | G7: =+F7*G2 -> $706,873 | H7: $14,844,336 | I7: $13,359,903 | L7: $629,250
A8: 005 | B8: 001 | C8: Breckinridge Elementary School 2101 St. Mathilda Drive | E8: 72,578 | F8: =E8*E212 -> $19,066,241 | G8: =+F8*G2 -> $953,312 | H8: $20,019,553 | I8: $18,017,597 | L8: $925,528
C9: Brenda Cowen Elementary School 4701 Athens-Boonesboro Rd. | E9: 80,948 | F9: =E9*E212 -> $21,265,040 | G9: =+F9*G2 -> $1,063,252 | H9: $22,328,292 | I9: $20,095,462
A10: 006 | B10: 001 | C10: Cardinal Valley Elementary School 218 Mandalay Road | E10: 74,964 | F10: =E10*E212 -> $19,693,043 | G10: =+F10*G2 -> $984,652 | H10: $20,677,695 | I10: $18,609,925 | L10: $1,005,713
A11: 007 | B11: 001 | C11: Cassidy Elementary School 1125 Tates Creek Road | E11: 73,934 | F11: =E11*E212 -> $19,422,462 | G11: =+F11*G2 -> $971,123 | H11: $20,393,585 | I11: $18,354,226 | L11: $901,065
A12: 008 | B12: 001 | C12: Clays Mill Elementary School 2319 Clays Mill Road | E12: 84,632 | F12: =E12*E212 -> $22,232,826 | G12: =+F12*G2 -> $1,111,641 | H12: $23,344,468 | I12: $21,010,021 | L12: $952,709
C13: Coventry Oak Elementary School 2550 Georgetown Road/Spurr Road | E13: 73,943 | F13: =E13*E212 -> $19,424,826 | G13: =+F13*G2 -> $971,241 | H13: $20,396,067 | I13: $18,356,461
A14: 009 | B14: 001 | C14: Deep Springs Elementary School 1919 Brynell Drive | E14: 69,396 | F14: =E14*E212 -> $18,230,329 | G14: =+F14*G2 -> $911,516 | H14: $19,141,846 | I14: $17,227,661 | L14: $869,806
A15: 010 | B15: 001 | C15: Dixie Elementary School 1940 Eastland Parkway | E15: 63,626 | F15: =E15*E212 -> $16,714,550 | G15: =+F15*G2 -> $835,728 | H15: $17,550,278 | I15: $15,795,250 | L15: $706,717
A16: 011 | B16: 001 | C16: Garden Springs Elementary School 2151 Garden Springs Drive | E16: 77,743 | F16: =E16*E212 -> $20,423,086 | G16: =+F16*G2 -> $1,021,154 | H16: $21,444,240 | I16: $19,299,816 | L16: $1,007,072
C17: Garrett Morgan Elementary 1150 Passage Mound Way/Polo Club Blvd | E17: 73,300 | F17: =E17*E212 -> $19,255,910 | G17: =+F17*G2 -> $962,796 | H17: $20,218,706 | I17: $18,196,835
A18: 012 | B18: 001 | C18: Glendover Elementary School 710 Glendover Road | E18: 73,068 | F18: =E18*E212 -> $19,194,964 | G18: =+F18*G2 -> $959,748 | H18: $20,154,712 | I18: $18,139,241 | L18: $1,166,084
A19: 013 | B19: 001 | C19: Harrison Elementary School 161 Bruce Street | E19: 56,300 | F19: =E19*E212 -> $14,790,010 | G19: =+F19*G2 -> $739,501 | H19: $15,529,511 | I19: $13,976,559 | L19: $636,046
A20: 014 | B20: 001 | C20: James Lane Allen Elementary School 1901 Appomattox Road | E20: 73,832 | F20: =E20*E212 -> $19,395,666 | G20: =+F20*G2 -> $969,783 | H20: $20,365,450 | I20: $18,328,905 | L20: $747,490
A21: 015 | B21: 001 | C21: Johnson Building 123 East Sixth Street | E21: 47,790 | F21: =E21*E212 -> $12,554,433 | G21: =+F21*G2 -> $627,722 | H21: $13,182,155 | I21: $11,863,939 | L21: $569,451
A22: 017 | B22: 001 | C22: Julius Marks Elementary School 3277 Pepperhill Road | E22: 60,411 | F22: =E22*E212 -> $15,869,970 | G22: =+F22*G2 -> $793,498 | H22: $16,663,468 | I22: $14,997,121 | L22: $1,099,489
A23: 018 | B23: 001 | C23: Lansdowne Elementary School 336 Redding Road | E23: 60,532 | F23: =E23*E212 -> $15,901,756 | G23: =+F23*G2 -> $795,088 | H23: $16,696,844 | I23: $15,027,160 | L23: $937,760
A24: 018 | B24: 002 | C24: Gymnasium | E24: 6,420 | F24: =E24*E212 -> $1,686,534 | G24: =+F24*G2 -> $84,327 | H24: $1,770,861 | I24: $1,593,775 | L24: $13,591
A25: 019 | B25: 001 | C25: Liberty Elementary School 2585 Liberty Road | E25: 71,900 | F25: =E25*E212 -> $18,888,130 | G25: =+F25*G2 -> $944,407 | H25: $19,832,537 | I25: $17,849,283 | L25: $631,968
A26: 019 | B26: 001 | C26: The Learning Center 475 Price Road | E26: 47,131 | F26: =E26*E212 -> $12,381,314 | G26: =+F26*G2 -> $619,066 | H26: $13,000,379 | I26: $11,700,341 | L26: $631,968
A27: 020 | B27: 001 | C27: Mary Todd Elementary School 551 Parkside Drive | E27: 70,800 | F27: =E27*E212 -> $18,599,160 | G27: =+F27*G2 -> $929,958 | H27: $19,529,118 | I27: $17,576,206 | L27: $933,682
A28: 021 | B28: 001 | C28: Maxwell Elementary School 301 Woodland Avenue | E28: 49,286 | F28: =E28*E212 -> $12,947,432 | G28: =+F28*G2 -> $647,372 | H28: $13,594,804 | I28: $12,235,323 | L28: $645,559
A29: 022 | B29: 001 | C29: Meadowthorpe Elementary School 1710 N. Forbes Road | E29: 69,460 | F29: =E29*E212 -> $18,247,142 | G29: =+F29*G2 -> $912,357 | H29: $19,159,499 | I29: $17,243,549 | L29: $429,467
A30: 023 | B30: 001 | C30: Millcreek Elementary School 1212 Reva Ridge Way | E30: 71,300 | F30: =E30*E212 -> $18,730,510 | G30: =+F30*G2 -> $936,526 | H30: $19,667,036 | I30: $17,700,332 | L30: $1,051,922
A31: 024 | B31: 001 | C31: Northern Elementary School 340 Rookwood Extended | E31: 67,310 | F31: =E31*E212 -> $17,682,337 | G31: =+F31*G2 -> $884,117 | H31: $18,566,454 | I31: $16,709,808 | L31: $835,829
A32: 025 | B32: 001 | C32: Picadome Elementary School 1642 Harrodsburg Road | E32: 57,302 | F32: =E32*E212 -> $15,053,235 | G32: =+F32*G2 -> $752,662 | H32: $15,805,897 | I32: $14,225,307 | L32: $811,366
C33: Preschool Center 460 Springhill | E33: 10,759 | F33: =E33*E212 -> $2,826,389 | G33: =+F33*G2 -> $141,319 | H33: $2,967,709 | I33: $2,670,938
C34: RISE / Junior Achievement Biztown/Newcomers 2420 Spurr Road | E34: 61,279 | F34: =E34*E212 -> $16,097,993 | G34: =+F34*G2 -> $804,900 | H34: $16,902,893 | I34: $15,212,604
C35: 2420 Spurr Road (Ed. Tech. Center) | E35: 1,600 | F35: =E35*E212 -> $420,320 | G35: =+F35*G2 -> $21,016 | H35: $441,336 | I35: $397,202
A36: 026 | B36: 001 | C36: Rosa Parks Elementary School 1251 Beaumont Centre Lane | E36: 68,985 | F36: =E36*E212 -> $18,122,360 | G36: =+F36*G2 -> $906,118 | H36: $19,028,477 | I36: $17,125,630 | L36: $1,080,000
A37: 027 | B37: 001 | C37: Russell Cave Elementary School 3375 Russell Cave Road | E37: 40,100 | F37: =E37*E212 -> $10,534,270 | G37: =+F37*G2 -> $526,714 | H37: $11,060,984 | I37: $9,954,885 | L37: $405,003
A38: 027 | B38: 002 | C38: Garage (metal prefabricated) | E38: 900 | F38: =E38*E212 -> $236,430 | G38: =+F38*G2 -> $11,822 | H38: $248,252 | I38: $223,426
A39: 028 | B39: 001 | C39: Sandersville Elementary School 3025 Sandersville Road | E39: 73,122 | F39: =E39*E212 -> $19,209,149 | G39: =+F39*G2 -> $960,457 | H39: $20,169,607 | I39: $18,152,646 | L39: $1,261,219
A40: 028 | B40: 001 | C40: Southern Elementary School 340 Wilson-Downing Road | E40: 70,659 | F40: =E40*E212 -> $18,562,119 | G40: =+F40*G2 -> $928,106 | H40: $19,490,225 | I40: $17,541,203 | L40: $1,261,219
A41: 029 | B41: 001 | C41: Squires Elementary School 3337 Squire Oak Road | E41: 79,656 | F41: =E41*E212 -> $20,925,631 | G41: =+F41*G2 -> $1,046,282 | H41: $21,971,913 | I41: $19,774,721 | L41: $1,073,667
A42: 030 | B42: 001 | C42: Stonewall Elementary School 3215 Cornwall Drive | E42: 78,294 | F42: =E42*E212 -> $20,567,834 | G42: =+F42*G2 -> $1,028,392 | H42: $21,596,225 | I42: $19,436,603 | L42: $1,046,485
A43: 031 | B43: 001 | C43: Tates Creek Elementary School 1113 Centre Parkway | E43: 79,087 | F43: =E43*E212 -> $20,776,155 | G43: =+F43*G2 -> $1,038,808 | H43: $21,814,963 | I43: $19,633,466 | L43: $1,054,640
A44: 033 | B44: 001 | C44: Veterans Park Elementary School 4351 Clearwater Way | E44: 73,467 | F44: =E44*E212 -> $19,299,781 | G44: =+F44*G2 -> $964,989 | H44: $20,264,770 | I44: $18,238,293 | J44: =E48*E212 -> $714,899,696 | L44: $1,080,000
C45: Wellington Elementary School 3280 Keithshire Way | E45: 73,990 | F45: =E45*E212 -> $19,437,173 | G45: =+F45*G2 -> $971,859 | H45: $20,409,032 | I45: $18,368,128
A46: 034 | B46: 001 | C46: William Wells Brown Elementary School 555 E. Fifth Street | E46: 69,297 | F46: =E46*E212 -> $18,204,322 | G46: =+F46*G2 -> $910,216 | H46: $19,114,538 | I46: $17,203,084 | J46: =#REF!+#REF! -> #REF! | L46: $716,231
A47: 034 | B47: 001 | C47: Yates Elementary School 695 E. New Circle Road | E47: 70,679 | F47: =E47*E212 -> $18,567,373 | G47: =+F47*G2 -> $928,369 | H47: $19,495,742 | I47: $17,546,168 | J47: =F48+G48 -> $750,644,681 | L47: $716,231
C48: SubTotals | E48: =SUM(E4:E47) -> 2,721,354 | F48: 714,899,696 | G48: 35,744,985 | H48: 750,644,681 | I48: 675,580,213
C50: MIDDLE SCHOOLS | E50: =+E213 -> $265.78 | F50: =+F2 -> per sq foot | G50: 5.00%
A51: Loc. No. | B51: Bldg. No. | C51: Building and Address | D51: Serial # | E51: Square Footage | F51: Building | G51: Contents | H51: Total Value | I51: .90 Coinsurance
A52: 035 | B52: 001 | C52: Beaumont Middle School 2080 Georgian Way | E52: 95,360 | F52: =E52*E213 -> $25,344,781 | G52: =+F52*G2 -> $1,267,239 | H52: =SUM(F52+G52) -> $26,612,020 | I52: =H52*0.9 -> $23,950,818 | L52: $1,057,358
A53: 037 | B53: 001 | C53: Bryan Station Middle School 1865 Wickland Drive | E53: 103,892 | F53: =E53*E213 -> $27,612,416 | G53: =+F53*G2 -> $1,380,621 | H53: $28,993,037 | I53: $26,093,733 | L53: $1,032,895
A54: 038 | B54: 001 | C54: Crawford Middle School 1813 Charleston Drive | E54: 100,349 | F54: =E54*E213 -> $26,670,757 | G54: =+F54*G2 -> $1,333,538 | H54: $28,004,295 | I54: $25,203,866 | L54: $1,099,489
C55: Edythe J. Hayes Middle School 260 Richardson Place | E55: 103,771 | F55: =E55*E213 -> $27,580,256 | G55: =+F55*G2 -> $1,379,013 | H55: $28,959,269 | I55: $26,063,342 | L55: $1,099,489
C56: Central Kentucky Japanese School Addition | E56: 12,972 | F56: =E56*E213 -> $3,447,698 | G56: =+F56*G2 -> $172,385 | H56: $3,620,083 | I56: ----- | L56: $150,000 | M56: =H56*0.9 -> $3,258,075
A57: 039 | B57: 001 | C57: Jessie M. Clark Middle School 3341 Clays Mill Road | E57: 125,321 | F57: =E57*E213 -> $33,307,815 | G57: =+F57*G2 -> $1,665,391 | H57: $34,973,206 | I57: =H57*0.9 -> $31,475,886 | L57: $1,155,088
A58: 040 | B58: 001 | C58: Leestown Middle School 2010 Leestown Road | E58: 109,197 | F58: =E58*E213 -> $29,022,379 | G58: =+F58*G2 -> $1,451,119 | H58: $30,473,498 | I58: $27,426,148 | L58: $1,049,204
A59: 041 | B59: 001 | C59: Lexington Traditional Middle School 350 North Limestone Street | E59: 88,547 | F59: =E59*E213 -> $23,534,022 | G59: =+F59*G2 -> $1,176,701 | H59: $24,710,723 | I59: $22,239,650 | L59: $1,005,713
A60: 041 | B60: 002 | C60: Gymnasium | E60: 12,953 | F60: =E60*E213 -> $3,442,648 | G60: =+F60*G2 -> $172,132 | H60: $3,614,781 | I60: $3,253,303 | L60: $13,591
A61: 042 | B61: 001 | C61: Morton Middle School 1225 Tates Creek Road | E61: 108,440 | F61: =E61*E213 -> $28,821,183 | G61: =+F61*G2 -> $1,441,059 | H61: $30,262,242 | I61: $27,236,018 | L61: $1,164,725
A62: 036 | B62: 001 | C62: SCAPA Bluegrass 400 Lafayette Parkway | E62: 62,326 | F62: =E62*E213 -> $16,565,004 | G62: =+F62*G2 -> $828,250 | H62: $17,393,254 | I62: $15,653,929 | L62: $400,000
A63: 043 | B63: 001 | C63: Southern Middle School 400 Wilson-Downing Road | E63: 92,685 | F63: =E63*E213 -> $24,633,819 | G63: =+F63*G2 -> $1,231,691 | H63: $25,865,510 | I63: $23,278,959 | J63: Double Check: | L63: $1,193,265
A64: 044 | B64: 001 | C64: Tates Creek Middle School 1105 Centre Parkway | E64: 109,500 | F64: =E64*E213 -> $29,102,910 | G64: =+F64*G2 -> $1,455,146 | H64: $30,558,056 | I64: $27,502,250 | J64: =E66*E213 -> $323,601,768 | L64: $1,422,948
A65: 045 | B65: 001 | C65: Winburn Middle School 1060 Winburn Drive | E65: 92,242 | F65: =E65*E213 -> $24,516,079 | G65: =+F65*G2 -> $1,225,804 | H65: $25,741,883 | I65: $23,167,694 | J65: =H66*0.9 -> $305,803,671 | L65: $1,155,211
C66: SubTotals | E66: =SUM(E52:E65) -> 1,217,555 | F66: $323,601,768 | G66: $16,180,088 | H66: $339,781,856 | I66: $302,545,596
C68: Note: According to a lease agreement between the Fayette County Board of Education (FCBE) and the Central Kentucky Japanese School (CKJS), "[FCBE] agrees to insure/self-insure the [CKJS Addition to the Edythe J. Hayes Middle School] for its full replacement value in accordance with the replacement cost estimates provided annually by the chief state school officer." As a result, CKJS is to be insured for the full replacement value stated in this Schedule of Values, and is to be exempted, by manual endorsement, from any co-insurance provision(s) applicable to other facilities.
C69: HIGH SCHOOLS | E69: =+E214 -> $274.69 | F69: =+F2 -> per sq foot | G69: 5.00%
A70: Loc. No. | B70: Bldg. No. | C70: Building and Address | D70: Serial # | E70: Square Footage | F70: Building | G70: Contents | H70: Total Value | I70: .90 Coinsurance
A71: 046 | B71: 001 | C71: Bryan Station High School 201 Eastin Road | E71: 278,574 | F71: =E71*E214 -> $76,521,492 | G71: =+F71*G2 -> $3,826,075 | H71: =SUM(F71+G71) -> $80,347,567 | I71: =H71*0.9 -> $72,312,810 | L71: $3,800,000
C72: Frederick Douglass High School 2000 Winchester Rd. 40509 | E72: 285,790 | F72: =E72*E214 -> $78,503,655 | G72: =+F72*G2 -> $3,925,183 | H72: $82,428,838 | I72: $74,185,954
A73: 047 | B73: 001 | C73: Henry Clay High School 2100 Fontaine Road | E73: 248,178 | F73: =E73*E214 -> $68,172,015 | G73: =+F73*G2 -> $3,408,601 | H73: $71,580,616 | I73: $64,422,554 | L73: $3,155,765
A74: 048 | B74: 001 | C74: Lafayette High School 401 Reed Lane | E74: 249,753 | F74: =E74*E214 -> $68,604,652 | G74: =+F74*G2 -> $3,430,233 | H74: $72,034,884 | I74: $64,831,396 | L74: $3,332,445
A75: 049 | B75: 001 | C75: Paul Laurence Dunbar High School 1600 Man-O-War Boulevard | E75: 271,514 | F75: =E75*E214 -> $74,582,181 | G75: =+F75*G2 -> $3,729,109 | H75: $78,311,290 | I75: $70,480,161 | L75: $3,706,560
A76: 050 | B76: 001 | C76: Tates Creek High School 1111 Centre Parkway | E76: 224,192 | F76: =E76*E214 -> $61,583,300 | G76: =+F76*G2 -> $3,079,165 | H76: $64,662,466 | I76: $58,196,219 | J76: Double Check: | L76: $2,300,355.20
A77: 052 | B77: 001 | C77: Martin Luther King Academy 2200 Liberty Road | E77: 40,746 | F77: =E77*E214 -> $11,192,519 | G77: =+F77*G2 -> $559,626 | H77: $11,752,145 | I77: $10,576,930 | J77: =H78*0.9 -> $415,006,024 | L77: $1,000,000
C78: SubTotals | E78: =SUM(E71:E77) -> 1,598,747 | F78: $439,159,813 | G78: $21,957,991 | H78: $461,117,804 | I78: $415,006,024
C80: VOCATIONAL SCHOOLS @ | E80: =+E215 -> $242.05 | F80: =+F2 -> per sq foot | G80: 5.00%
A81: Loc. No. | B81: Bldg. No. | C81: Building and Address | D81: Serial # | E81: Square Footage | F81: Building | G81: Contents | H81: Total Value | I81: .90 Coinsurance | J81: Doublecheck
A82: 051 | B82: 001 | C82: Eastside Center for Applied Technology 2208 Liberty Road | E82: 43,496 | F82: =E82*E215 -> $10,528,207 | G82: =+F82*G2 -> $526,410 | H82: =SUM(F82+G82) -> $11,054,617 | I82: =H82*0.9 -> $9,949,155 | J82: =SUM(F82:F89) -> $67,705,984 | L82: $652,355
A83: 051 | B83: 002 | C83: Garage (metal prefabricated) | E83: 900 | F83: =E83*E215 -> $217,845 | G83: =+F83*G2 -> $10,892 | H83: $228,737 | I83: $205,864 | J83: =SUM(F90:G90) -> $71,091,283
C84: Locust Trace Agriscience Farm - Academic Bldg 242 Locust Farm Road | E84: 43,081 | F84: =E84*E215 -> $10,427,756 | G84: =+F84*G2 -> $521,388 | H84: $10,949,144 | I84: $9,854,229
C85: Greenhouse 242 Locust Farm Road | E85: 3,746 | F85: =E85*E215 -> $906,719 | G85: =+F85*G2 -> $45,336 | H85: $952,055 | I85: $856,850
C86: Arena 252 Locust Farm Road | E86: 19,257 | F86: =E86*E215 -> $4,661,157 | G86: =+F86*G2 -> $233,058 | H86: $4,894,215 | I86: $4,404,793
C87: Barn 272 Locust Farm Road | E87: 2,736 | F87: =E87*E215 -> $662,249 | G87: =+F87*G2 -> $33,112 | H87: $695,361 | I87: $625,825
C88: Southside Center for Applied Technology 1800 Harrodsburg Road | E88: 41,503 | F88: =E88*E215 -> $10,045,801 | G88: =+F88*G2 -> $502,290 | H88: $10,548,091 | I88: $9,493,282
A89: 053 | B89: 001 | C89: STEAM/Success Academy 1555 Georgetown Road (under reno 19-20) | E89: 125,000 | F89: =E89*E215 -> $30,256,250 | G89: =+F89*G2 -> $1,512,813 | H89: $31,769,063 | I89: $28,592,156 | J89: =H90*0.9 -> $35,389,999 | L89: $733,899
C90: SubTotals | E90: =SUM(E82:E89) -> 279,719 | F90: $67,705,984 | G90: $3,385,299 | H90: =SUM(H82:H88) -> $39,322,221 | I90: =SUM(I82:I89) -> $63,982,155
C92: CENTRAL OFFICE | E92: =+E217 -> $222.39 | F92: =+F2 -> per sq foot | G92: 5.00%
A93: Loc. No. | B93: Bldg. No. | C93: Building and Address | D93: Serial # | E93: Square Footage | F93: Building | G93: Contents | H93: Total Value | I93: .90 Coinsurance
A94: 054 | B94: 001 | C94: IAKSS Building 701-707 East Main Street | E94: 112,283 | F94: =E94*E217 -> $24,970,616 | G94: =+F94*G2 -> $1,248,531 | H94: =SUM(F94+G94) -> $26,219,147 | I94: =H94*0.9 -> $23,597,232 | L94: $1,902,701
A95: 054 | B95: 002 | C95: IAKSS Building - Annex Rear 701-703 East Main Street | E95: 20,739 | F95: =E95*E217 -> $4,612,146 | G95: =+F95*G2 -> $230,607 | H95: $4,842,754 | I95: $4,358,478
A96: 058 | B96: 001 | C96: Joe G. White Building 400 Springhill Drive | E96: 22,172 | F96: =E96*E217 -> $4,930,831 | G96: =+F96*G2 -> $246,542 | H96: $5,177,373 | I96: $4,659,635 | J96: Double Check: | L96: $395,366
A97: 055 | B97: 001 | C97: John W. Ambrose Building 128 Walton Avenue | E97: 9,360 | F97: =E97*E217 -> $2,081,570 | G97: =+F97*G2 -> $104,079 | H97: $2,185,649 | I97: $1,967,084 | J97: =E102*E217 -> $122,167,723 | L97: $135,907
A98: 056 | B98: 001 | C98: Lexington Women's Club Clothing Center 700 Bullock Place | E98: 3,150 | F98: =E98*E217 -> $700,529 | G98: =+F98*G2 -> $35,026 | H98: $735,555 | I98: $661,999 | J98: =F102+G102 -> $128,276,109
A99: 061 | B99: 001 | C99: Maintenance Building 461 Springhill Drive | E99: 32,548 | F99: =E99*E217 -> $7,238,350 | G99: =+F99*G2 -> $361,917 | H99: $7,600,267 | I99: $6,840,240 | J99: =H102*0.9 -> $115,448,498 | L99: $864,864
C100: 101 Midland | E100: 162,476 | F100: =E100*E217 -> $36,133,038 | G100: =+F100*G2 -> $1,806,652 | H100: $37,939,690 | I100: $34,145,721
C101: 450 Park Place | E101: 186,612 | F101: =E101*E217 -> $41,500,643 | G101: =+F101*G2 -> $2,075,032 | H101: $43,575,675 | I101: $39,218,107
C102: SubTotals | E102: =SUM(E94:E101) -> 549,340 | F102: $122,167,723 | G102: $6,108,386 | H102: $128,276,109 | I102: $115,448,498
C104: BUS GARAGES | E104: =+E218 -> $203.13 | F104: =+F2 -> per sq foot | G104: 5.00%
A105: Loc. No. | B105: Bldg. No. | C105: Building and Address | D105: Serial # | E105: Square Footage | F105: Building | G105: Contents | H105: Total Value | I105: .90 Coinsurance
A106: 057 | B106: 001 | C106: Liberty Bus Garage 2264 Liberty Road (Main Bldg.) | E106: 13,572 | F106: =E106*E218 -> $2,756,880 | G106: =+F106*G2 -> $137,844 | H106: =SUM(F106+G106) -> $2,894,724 | I106: =H106*0.9 -> $2,605,252 | L106: $271,814
A107: 057 | B107: 002 | C107: Shelters | E107: 36,960 | F107: =E107*E218 -> $7,507,685 | G107: =+F107*G2 -> $375,384 | H107: $7,883,069 | I107: $7,094,762 | J107: Double Check: | L107: $216,000
A108: 057 | B108: 003 | C108: Bus Wash | E108: 2,015 | F108: =E108*E218 -> $409,307 | G108: =+F108*G2 -> $20,465 | H108: $429,772 | I108: $386,795 | J108: =E111*E218 -> $16,284,729 | L108: $75,600
A109: 057 | B109: 004 | C109: Oil Storage Tank (Contents Only) | F109: =E109*E218 -> 0 | G109: =+F109*G2 -> 0 | H109: 0 | I109: 0 | J109: =F111+G111 -> $17,098,965 | L109: $356,400
C110: Miles Point Bus Garage 780 Milepoint Way | E110: 27,622 | F110: =E110*E218 -> $5,610,857 | G110: =+F110*G2 -> $280,543 | H110: =+F110+G110 -> $5,891,400 | I110: $5,302,260
C111: SubTotals | E111: =SUM(E106:E110) -> 80,169 | F111: $16,284,729 | G111: $814,236 | H111: $17,098,965 | I111: $15,389,069
C113: STORAGE BUILDINGS | E113: =+E219 -> $147.21 | F113: =+F2 -> per sq foot | G113: 5.00% | J113: Double Check:
A114: Loc. No. | B114: Bldg. No. | C114: Building and Address | D114: Serial # | E114: Square Footage | F114: Building | G114: Contents | H114: Total Value | I114: .90 Coinsurance | J114: =E117*E219 -> $22,308,498
C115: Russell Cave Warehouse, 1126 Russell Cave Rd | E115: 99,968 | F115: =E115*E219 -> $14,716,289 | G115: =+F115*G2 -> $735,814 | H115: =SUM(F115+G115) -> $15,452,104 | I115: =H115*0.9 -> $13,906,893
A116: 060 | B116: 001 | C116: Louis Mack Building, 460 Springhill Drive | E116: 51,574 | F116: =E116*E219 -> $7,592,209 | G116: =+F116*G2 -> $379,610 | H116: $7,971,819 | I116: $7,174,637 | J116: =F117+G117 -> $23,423,923 | L116: $3,088,800
C117: SubTotals | E117: =SUM(E115:E116) -> 151,542 | F117: $22,308,498 | G117: $1,115,425 | H117: $23,423,923 | I117: $21,081,530
C119: ATHLETIC FACILITIES | G119: =+G2 -> 5.00%
A120: 046 | B120: 004 | C120: Bryan Station High School Football Facilities | E120: 522,720 | F120: $4,197,441 | G120: =+F120*G2 -> $209,872 | H120: =SUM(F120+G120) -> $4,407,313 | I120: =H120*0.9 -> $3,966,582 | L120: $2,527,874
A121: 046 | B121: 004 | C121: Baseball / Softball Facilities | E121: 6,368 | F121: =+E121*E220 -> $358,900 | G121: =+F121*G2 -> $17,945 | H121: $376,846 | I121: $339,161 | L121: $2,527,874
C122: Frederick Douglass High School Football Facilities | E122: 522,720 | F122: $4,197,441 | G122: =+F122*G2 -> $209,872 | H122: $4,407,313 | I122: $3,966,582
C123: Baseball / Softball Facilities | E123: 6,368 | F123: =+E123*E220 -> $358,900 | G123: =+F123*G2 -> $17,945 | H123: $376,846 | I123: $339,161
C124: P.L. Dunbar High School Football Facilities | E124: 522,720 | F124: $3,497,450 | G124: =+F124*G2 -> $174,873 | H124: $3,672,323 | I124: $3,305,090
C125: Baseball / Softball Facilities | E125: 5,120 | F125: =+E125*E220 -> $288,563 | G125: =+F125*G2 -> $14,428 | H125: $302,991 | I125: $272,692
A126: 047 | B126: 003 | C126: Henry Clay High School Football Stadium and Facilities | E126: 522,720 | F126: $3,497,450 | G126: =+F126*G2 -> $174,873 | H126: $3,672,323 | I126: $3,305,090 | L126: $3,155,765
A127: 047 | B127: 004 | C127: Baseball / Softball Facilities | E127: 5,120 | F127: =+E127*E220 -> $288,563 | G127: =+F127*G2 -> $14,428 | H127: $302,991 | I127: $272,692 | L127: $132,000
A128: 047 | B128: 005 | C128: Football Facility | E128: 4,000 | F128: =+E128*E220 -> $225,440 | G128: =+F128*G2 -> $11,272 | H128: $236,712 | I128: $213,041 | L128: $100,000
A129: 048 | B129: 002 | C129: Lafayette High School Football Stadium and Facilities | E129: 522,720 | F129: $4,197,441 | G129: =+F129*G2 -> $209,872 | H129: $4,407,313 | I129: $3,966,582 | L129: $3,332,445
A130: 048 | B130: 002 | C130: Baseball / Softball Facilities | E130: 6,800 | F130: =+E130*E220 -> $383,248 | G130: =+F130*G2 -> $19,162 | H130: $402,410 | I130: $362,169 | L130: $3,332,445
A131: 050 | B131: 002 | C131: Tates Creek High School Football Stadium and Facilities | E131: 435,600 | F131: $3,497,868 | G131: =+F131*G2 -> $174,893 | H131: $3,672,761 | I131: $3,305,485 | J131: =F133+G133 -> $26,534,032 | L131: $2,300,355.20
A132: 050 | B132: 003 | C132: Baseball / Softball Facilities | E132: 5,000 | F132: =+E132*E220 -> $281,800 | G132: =+F132*G2 -> $14,090 | H132: $295,890 | I132: $266,301 | J132: =H133*0.9 -> $23,880,629 | L132: $25,000
C133: SubTotals | E133: =SUM(E120:E132) -> 3,087,976 | F133: $25,270,506 | G133: $1,263,525 | H133: $26,534,032 | I133: $23,880,629
C135: PORTABLES (Rev. 8/21/21)
A136: Loc. No. | B136: Bldg. No. | D136: Serial # | E136: Square Footage | F136: Building | G136: Contents | H136: Total Value | I136: .90 Coinsurance | N136: classrooms
A137: 035 | B137: 002 | C137: Athens-Chilesburg Elementary 5,616 | L137: $8,986
C138: Double Relocatable Classroom | D138: CPX-74117 | E138: 1,632 | F138: $64,540 | G138: $9,166 | H138: =+F138+G138 -> $73,706 | I138: =+H138*0.9 -> $66,335 | N138: 2
C139: Double Relocatable Classroom | D139: CPX-75422 | E139: 1,632 | F139: $64,540 | G139: $9,166 | H139: $73,706 | I139: $66,335 | L139: $8,986 | N139: 2
A140: 035 | B140: 002 | C140: Double Relocatable Classroom | D140: CPX-73811 | E140: 1,632 | F140: $64,540 | G140: $9,166 | H140: $73,706 | I140: $66,335 | L140: $8,986 | N140: 2
C141: Restroom | D141: MDS-034788 | E141: 720 | F141: $42,000 | G141: $500 | H141: $42,500 | I141: $38,250 | N141: 0
C142: Beaumont Middle 10,880
A143: 035 | B143: 003 | C143: Double Relocatable Classroom (own) | D143: n/a | E143: 1,904 | F143: $20,000 | G143: $9,166 | H143: =+F143+G143 -> $29,166 | I143: =+H143*0.9 -> $26,249 | L143: $8,986 | N143: 2
C144: Double Relocatable Classroom (own) | D144: n/a | E144: 1,904 | F144: $20,000 | G144: $9,166 | H144: $29,166 | I144: $26,249 | L144: $8,986 | N144: 2
C145: Double Relocatable Classroom (own) | D145: n/a | E145: 1,904 | F145: $20,000 | G145: $9,166 | H145: $29,166 | I145: $26,249 | N145: 2
C146: Double Relocatable Classroom | D146: CPX-73814 | E146: 1,632 | F146: $64,540 | G146: $9,166 | H146: $73,706 | I146: $66,335 | N146: 2
C147: Double Relocatable Classroom | D147: CPX-70070 | E147: 1,632 | F147: $56,329 | G147: $9,166 | H147: $65,495 | I147: $58,945 | N147: 2
C148: Double Relocatable Classroom | D148: CPX-70081 | E148: 1,904 | F148: $56,329 | G148: $9,166 | H148: $65,495 | I148: $58,945 | N148: 2
C149: Cassidy Elementary 1,792
C150: Double Relocatable Classroom | D150: CPX-72598 | E150: 1,792 | F150: $56,329 | G150: $9,156 | H150: =+F150+G150 -> $65,485 | I150: =+H150*0.9 -> $58,937 | N150: 2
C151: EJ Hayes Middle School 7,972
C152: Double Relocatable Classroom | D152: CPX-70052 | E152: 1,904 | F152: $64,540 | G152: $9,166 | H152: =+F152+G152 -> $73,706 | I152: =+H152*0.9 -> $66,335 | N152: 2
C153: Double Relocatable Classroom | D153: CPX-75420 | E153: 1,632 | F153: $56,329 | G153: $9,166 | H153: $65,495 | I153: $58,946 | N153: 2
C154: Double Relocatable Classroom | D154: CPX-72628 | E154: 1,904 | F154: $64,540 | G154: $9,166 | H154: $73,706 | I154: $66,335 | N154: 2
C155: Double Relocatable Classroom | D155: CPX-73298 | E155: 1,632 | F155: $56,329 | G155: $9,166 | H155: $65,495 | I155: $58,946 | N155: 2
C156: Garrett Morgan Elementary School 3,920
C157: Double Relocate Classroom | D157: 2325807-08 | E157: 1,960 | F157: $90,000 | G157: $9,166 | H157: =+F157+G157 -> $99,166 | I157: =+H157*0.9 -> $89,249 | N157: 2
C158: Double Relocatable Clssroom | D158: 2325809-10 | E158: 1,960 | F158: $90,000 | G158: $9,166 | H158: $99,166 | I158: $89,249 | N158: 2
C159: Henry Clay High School 15,552
C160: Double Relocatable Clssroom | D160: CPX-115183 | E160: 1,632 | F160: $64,540 | G160: $9,166 | H160: =+F160+G160 -> $73,706 | I160: =+H160*0.9 -> $66,335 | N160: 2
C161: Double Relocatable Clssroom | D161: CPX-113238 | E161: 1,632 | F161: $64,540 | G161: $9,166 | H161: $73,706 | I161: $66,335 | N161: 2
C162: Relocatable Classrooms | D162: ARIES-80709 | E162: 12,288 | F162: $516,320 | G162: $64,162 | H162: $580,482 | I162: $522,434 | N162: 14
C163: Eastside Technical 1,632
C164: Double Relocatable Classroom | D164: CPX-73816 | E164: 1,632 | F164: $64,540 | G164: $9,166 | H164: =+F164+G164 -> $73,706 | I164: =+H164*0.9 -> $66,335 | N164: 2
C165: Jessie Clark Middle School 7,168
C166: Relocatable Classrooms | D166: Van-38613 | E166: 7,168 | F166: $287,795 | G166: $36,664 | H166: =+F166+G166 -> $324,459 | I166: =+H166*0.9 -> $292,013 | N166: 8
C167: Julius Marks Elementary 4,576
C168: Restroom | D168: MDS-019317 | E168: 768 | F168: $42,000 | G168: $500 | H168: =+F168+G168 -> $42,500 | I168: =+H168*0.9 -> $38,250 | N168: 0
C169: Double Relocatable Classroom | D169: CPX-110057 | E169: 1,904 | F169: $81,200 | G169: $9,166 | H169: $90,366 | I169: $81,329 | N169: 2
C170: Double Relocatable Classroom | D170: CPX-109186 | E170: 1,904 | F170: $81,600 | G170: $9,166 | H170: $90,766 | I170: $81,689 | N170: 2
C171: Lansdowne Elementary School 1,632
C172: Double Relocatable Classroom | D172: CPX-75418 | E172: 1,632 | F172: $64,540 | G172: $9,166 | H172: =+F172+G172 -> $73,706 | I172: =+H172*0.9 -> $66,335 | N172: 2
C173: Leestown Middle School 13,648
C174: Double Relocatable Classroom | D174: 2323271-72 | E174: 1,960 | F174: $90,000 | G174: $9,166 | H174: =+F174+G174 -> $99,166 | I174: =+H174*0.9 -> $89,249 | N174: 2
C175: Double Relocatable Classroom | D175: 2323269-70 | E175: 1,960 | F175: $90,000 | G175: $9,166 | H175: $99,166 | I175: $89,249 | N175: 2
C176: Relocatable Classrooms (future) | D176: Van-39226 | E176: 9,728 | F176: $446,612 | G176: $45,830 | H176: =F176+G176 -> $492,442 | I176: $443,198 | N176: 10
C177: Liberty Elementary 3,264
C178: Double Relocatable Classroom | D178: CPX-74119 | E178: 1,632 | F178: $64,540 | G178: $9,166 | H178: =+F178+G178 -> $73,706 | I178: =+H178*0.9 -> $66,335 | N178: 2
C179: Double Relocatable Classroom | D179: CPX-75277 | E179: 1,632 | F179: $64,540 | G179: $9,166 | H179: $73,706 | I179: $66,335 | N179: 2
C180: Morton Middle School 3,536
C181: Double Relocatable Classroom | D181: CPX-73065 | E181: 1,904 | F181: $81,200 | G181: $9,166 | H181: =+F181+G181 -> $90,366 | I181: =+H181*0.9 -> $81,329 | N181: 2
C182: Double Relocatable Classroom | D182: CPX-73813 | E182: 1,632 | F182: $64,540 | G182: $9,166 | H182: $73,706 | I182: $66,335 | N182: 2
C183: Northern Elementary 1,904
C184: Double Relocatable Classroom | D184: CPX-72593 | E184: 1,904 | F184: $56,329 | G184: $9,166 | H184: =+F184+G184 -> $65,495 | I184: =+H184*0.9 -> $58,946 | N184: 2
C185: Rosa Parks Elementary School 1,500
C186: Double Relocatable Classroom (own) | D186: n/a | E186: 1,500 | F186: $20,000 | G186: $9,166 | H186: =+F186+G186 -> $29,166 | I186: =+H186*0.9 -> $26,249 | N186: 2
C187: Southern Middle School 3,808
C188: Double Relocatable Classroom | D188: CPX-70108 | E188: 1,904 | F188: $64,540 | G188: $9,166 | H188: =+F188+G188 -> $73,706 | I188: =+H188*0.9 -> $66,335 | N188: 2
C189: Double Relocatable Classroom | D189: CPX-70108 | E189: 1,904 | F189: $64,540 | G189: $9,166 | H189: $73,706 | I189: $66,335 | N189: 2
C190: Veterans Park Elementary 4,176
C191: Double Relocatable Classroom | D191: CPX-114099 | E191: 1,776 | F191: $84,000 | G191: $9,166 | H191: =+F191+G191 -> $93,166 | I191: =+H191*0.9 -> $83,849 | N191: 2
C192: Double Relocatable Classroom | D192: CPX-111966 | E192: 1,632 | F192: $81,600 | G192: $9,166 | H192: $90,766 | I192: $81,689 | N192: 2
C193: Restroom | D193: MDS-078509 | E193: 768 | F193: $42,000 | G193: $500 | H193: $42,500 | I193: $38,250 | N193: 0
C194: Winburn Middle 5,376 | N194: 6
C195: Relocatable Classrooms | D195: Van-38612 | E195: 5,376 | F195: $215,846 | G195: $27,498 | H195: =+F195+G195 -> $243,344 | I195: =+H195*0.9 -> $219,010
C196: Liberty Road Bus Garage 3,640
C197: Double Relocatable Offices (own) | D197: n/a | E197: 1,500 | F197: $45,000 | G197: $15,000 | H197: =+F197+G197 -> $60,000 | I197: =+H197*0.9 -> $54,000
C198: Double Relocatable Offices (own) | D198: n/a | E198: 1,500 | F198: $45,000 | G198: $15,000 | H198: $60,000 | I198: $54,000
C199: Temp Covid 40 x 8 $15,108 | D199: Covid Office | E199: 320 | F199: $12,848 | G199: $500 | H199: =F199+G199 -> $13,348 | I199: $12,013
C200: Temp Covid 40 x 8 $15,108 | D200: Covid Office | E200: 320 | F200: $12,848 | G200: $500 | H200: $13,348 | I200: $12,013
C201: SubTotals ** | E201: =SUM(E138:E200) -> 100,692 | F201: =SUM(F138:F198) -> $3,838,247 | G201: $517,285 | H201: $4,355,532 | I201: $3,919,979
C203: UNIMPROVED LAND
A204: Loc. No. | B204: Bldg. No. | C204: Building and Address | E204: Square Footage | F204: Building | G204: Contents | H204: Total Value | I204: .90 Coinsurance
C205: Southern Elementary & Middle Property (Meadowbrook Golf Course) 400 Wilson Downing | J205: Double Check:
C206: 4701 Athens Boonesboro Rd (current I am 3rd soccer fields)
C207: 2345 Polo Club Blvd (future middle school) | G207: =+F207*G2 -> 0 | H207: =SUM(F207+G207) -> 0 | I207: =H207*0.9 -> 0
C208: SubTotals | E208: =SUM(E205:E207) -> 0 | F208: 0 | G208: 0 | H208: 0 | I208: 0
C209: GRAND TOTALS | E209: =SUM(E48+E66+E78+E90+E102+E111+E117+E133+E201+E208) -> 9,787,094 | F209: $1,735,236,964 | G209: $87,087,221 | H209: $1,790,555,123 | I209: $1,636,833,692 | L209: =SUM(L4:L198) -> $86,646,018
... 9 more rows
